Workbook

Sheet 1r
A1: 5' | B1: なし | AG1: ave | AH1: mono | AI1: selected
A2: 3' | B2: -p | G2: UCÇ◊AUK | AF2: H | AG2: 1.00794 | AH2: 1.00782 | AI2: =IF(OR($P$4="ave",$P$4="ave>p"),AG2,AH2) -> 1.00782
G3: -1 | H3: から表示 | Q3: -H+ | AF3: Na | AG3: 22.9898 | AH3: 22.9898 | AI3: 22.9898
P4: mono | Q4: a | R4: 3'-OH-H2O | U4: b | V4: 3'-OH | Y4: c | Z4: 3'-p -H2O | AC4: d | AD4: 3'-p | AF4: K | AG4: 39.0983 | AH4: 38.9637 | AI4: 38.9637
C5: No. | D5: No. | E5: 列 | F5: position | G5: position | H5: fragment | I5: ave | J5: ave>p | K5: mono | L5: mono>p | M5: top | N5: top>p | P5: =IF(P4="ave",0,IF(P4="ave>p",0.5,IF(P4="mono",1,IF(P4="mono>p",1.5,IF(P4="top",2,2.5))))) -> 1 | Q5: =$G$3 -> -1 | R5: =Q5-1 -> -2 | S5: =R5-1 -> -3 | U5: =$G$3 -> -1 | V5: =U5-1 -> -2 | W5: =V5-1 -> -3 | Y5: =$G$3 -> -1 | Z5: =Y5-1 -> -2 | AA5: =Z5-1 -> -3 | AC5: =$G$3 -> -1 | AD5: =AC5-1 -> -2 | AE5: =AD5-1 -> -3 | AF5: CE | AG5: 53.06266 | AH5: 53.02655 | AI5: 53.02655
C6: =IF(ISNUMBER(F6),1,"") -> 1 | D6: 1 | E6: =IF(ISNUMBER(MATCH(D6,INDIRECT($A$7&"!q$7:q$67"),0)),MATCH(D6,INDIRECT($A$7&"!q$7:q$67"),0),"") -> 7 | F6: =IF(ISNUMBER($E6),INDEX(INDIRECT($A$7&"!h$7:h$66"),$E6,1),"") -> 6 | G6: =IF(ISNUMBER($E6),INDEX(INDIRECT($A$7&"!i$7:i$66"),$E6,1),"") -> 1 : 1 | H6: =IF(ISNUMBER($E6),INDEX(INDIRECT($A$7&"!f$7:f$66"),$E6,1),"") -> Up | I6: =IF(ISNUMBER($E6),INDEX(INDIRECT($A$7&"!k$7:k$66"),$E6,1),"") -> 324.181282 | J6: =IF(ISNUMBER($E6),INDEX(INDIRECT($A$7&"!l$7:l$66"),$E6,1),"") -> 306.166002 | K6: =IF(ISNUMBER($E6),INDEX(INDIRECT($A$7&"!m$7:m$66"),$E6,1),"") -> 324.0358665 | L6: =IF(ISNUMBER($E6),INDEX(INDIRECT($A$7&"!n$7:n$66"),$E6,1),"") -> 306.0253018 | M6: =IF(ISNUMBER($E6),INDEX(INDIRECT($A$7&"!o$7:o$66"),$E6,1),"") -> 324.0358665 | N6: =IF(ISNUMBER($E6),INDEX(INDIRECT($A$7&"!p$7:p$66"),$E6,1),"") -> 306.0253018 | P6: =IF(ISNUMBER($E6),(IF(ISNUMBER($E7),OFFSET($I6,0,INT($P$5)*2)-$AI$6-$AI$7,IF($B$2="なし",OFFSET($I6,0,INT($P$5)*2)-$AI$7,OFFSET($I6,0,INT($P$5)*2)-$AI$6-$AI$7))),"") -> 226.0589765 | Q6: =IF(ISNUMBER($P6),($P6+Q$5*$AI$2)/(-1*Q$5),"") -> 225.0511565 | R6: 112.0216683 | S6: 74.34517217 | T6: =IF(ISNUMBER(P6),P6+$AI$7,"") -> 244.0695365 | U6: =IF(ISNUMBER($T6),($T6+U$5*$AI$2)/(-1*U$5),"") -> 243.0617165 | V6: 121.0269483 | W6: 80.34869217 | X6: =IF(ISNUMBER($E6),(IF(ISNUMBER($E7),OFFSET($I6,0,INT($P$5)*2)-$AI$7,IF($B$2="なし","",OFFSET($I6,0,INT($P$5)*2)-$AI$7))),"") -> 306.0253065 | Y6: =IF(ISNUMBER($X6),($X6+Y$5*$AI$2)/(-1*Y$5),"") -> 305.0174865 | Z6: 152.0048333 | AA6: 101.0006155 | AB6: =IF(ISNUMBER(X6),X6+$AI$7,"") -> 324.0358665 | AC6: =IF(ISNUMBER($AB6),($AB6+AC$5*$AI$2)/(-1*AC$5),"") -> 323.0280465 | AD6: 161.0101133 | AE6: 107.0041355 | AF6: HPO3 | AG6: 79.9799 | AH6: 79.96633 | AI6: 79.96633
A7: 1left | C7: =IF(ISNUMBER(F7),C6+1,"") -> 2 | D7: 2 | E7: =IF(ISNUMBER(MATCH(D7,INDIRECT($A$7&"!q$7:q$67"),0)),MATCH(D7,INDIRECT($A$7&"!q$7:q$67"),0),"") -> 6 | F7: =IF(ISNUMBER($E7),INDEX(INDIRECT($A$7&"!h$7:h$66"),$E7,1),"") -> 5 | G7: =IF(ISNUMBER($E7),INDEX(INDIRECT($A$7&"!i$7:i$66"),$E7,1),"") -> 1 : 2 | H7: =IF(ISNUMBER($E7),INDEX(INDIRECT($A$7&"!f$7:f$66"),$E7,1),"") -> UCp | I7: =IF(ISNUMBER($E7),INDEX(INDIRECT($A$7&"!k$7:k$66"),$E7,1),"") -> 629.362524 | J7: =IF(ISNUMBER($E7),INDEX(INDIRECT($A$7&"!l$7:l$66"),$E7,1),"") -> 611.347244 | K7: =IF(ISNUMBER($E7),INDEX(INDIRECT($A$7&"!m$7:m$66"),$E7,1),"") -> 629.0771528 | L7: =IF(ISNUMBER($E7),INDEX(INDIRECT($A$7&"!n$7:n$66"),$E7,1),"") -> 611.0665881 | M7: =IF(ISNUMBER($E7),INDEX(INDIRECT($A$7&"!o$7:o$66"),$E7,1),"") -> 629.0771528 | N7: =IF(ISNUMBER($E7),INDEX(INDIRECT($A$7&"!p$7:p$66"),$E7,1),"") -> 611.0665881 | P7: 531.1002628 | Q7: 530.0924428 | R7: 264.5423114 | S7: 176.0256009 | T7: =IF(ISNUMBER(P7),P7+$AI$7,"") -> 549.1108228 | U7: 548.1030028 | V7: 273.5475914 | W7: 182.0291209 | X7: 611.0665928 | Y7: 610.0587728 | Z7: 304.5254764 | AA7: 202.6810443 | AB7: =IF(ISNUMBER(X7),X7+$AI$7,"") -> 629.0771528 | AC7: 628.0693328 | AD7: 313.5307564 | AE7: 208.6845643 | AF7: H2O | AG7: 18.01528 | AH7: 18.01056 | AI7: 18.01056
A8: 1right | C8: =IF(ISNUMBER(F8),C7+1,"") -> 3 | D8: 3 | E8: 5 | F8: 4 | G8: 1 : 3 | H8: UCÇp | I8: 883.497026 | J8: 865.481746 | K8: 883.10754 | L8: 865.0969753 | M8: 883.10754 | N8: 865.0969753 | P8: 785.13065 | Q8: 784.12283 | R8: 391.557505 | S8: 260.7023967 | T8: 803.14121 | U8: 802.13339 | V8: 400.562785 | W8: 266.7059167 | X8: 865.09698 | Y8: 864.08916 | Z8: 431.54067 | AA8: 287.35784 | AB8: 883.10754 | AC8: 882.09972 | AD8: 440.54595 | AE8: 293.36136 | AF8: CH2 | AG8: 14.02658 | AH8: 14.01565 | AI8: 14.01565
C9: 4 | D9: 4 | E9: 4 | F9: 3 | G9: 1 : 4 | H9: UCÇ◊p | I9: 1247.699108 | J9: 1229.683828 | K9: 1247.138321 | L9: 1229.127756 | M9: 1247.138321 | N9: 1229.127756 | P9: 1149.161431 | Q9: 1148.153611 | R9: 573.5728956 | S9: 382.0459904 | T9: 1167.171991 | U9: 1166.164171 | V9: 582.5781756 | W9: 388.0495104 | X9: 1229.127761 | Y9: 1228.119941 | Z9: 613.5560606 | AA9: 408.7014337 | AB9: 1247.138321 | AC9: 1246.130501 | AD9: 622.5613406 | AE9: 414.7049537
C10: 5 | D10: 5 | E10: 3 | F10: 2 | G10: 1 : 5 | H10: UCÇ◊Ap | I10: 1576.90505 | J10: 1558.88977 | K10: 1576.190841 | L10: 1558.180276 | M10: 1576.190841 | N10: 1558.180276 | P10: 1478.213951 | Q10: 1477.206131 | R10: 738.0991554 | S10: 491.7301636 | T10: 1496.224511 | U10: 1495.216691 | V10: 747.1044354 | W10: 497.7336836 | X10: 1558.180281 | Y10: 1557.172461 | Z10: 778.0823204 | AA10: 518.3856069 | AB10: 1576.190841 | AC10: 1575.183021 | AD10: 787.0876004 | AE10: 524.3891269
A11: ユーザー定義塩基質量 | C11: 6 | D11: 6 | E11: 2 | F11: 1 | G11: 1 : 6 | H11: UCÇ◊AUp | I11: 1883.071052 | J11: 1865.055772 | K11: 1882.216143 | L11: 1864.205578 | M11: 1882.216143 | N11: 1864.205578 | P11: 1784.239253 | Q11: 1783.231433 | R11: 891.1118063 | S11: 593.7385975 | T11: 1802.249813 | U11: 1801.241993 | V11: 900.1170863 | W11: 599.7421175 | X11: 1864.205583 | Y11: 1863.197763 | Z11: 931.0949713 | AA11: 620.3940409 | AB11: 1882.216143 | AC11: 1881.208323 | AD11: 940.1002513 | AE11: 626.3975609
A12: N | B12: 273.2426 | C12: 7 | D12: 7 | E12: 1 | F12: 0 | G12: 1 : 7 | H12: UCÇ◊AUKp | I12: 2242.302974 | J12: 2224.287694 | K12: 2241.279227 | L12: 2223.268662 | M12: 2241.279227 | N12: 2223.268662 | P12: 2143.302337 | Q12: 2142.294517 | R12: 1070.643348 | S12: 713.4262923 | T12: 2161.312897 | U12: 2160.305077 | V12: 1079.648628 | W12: 719.4298123 | X12: 2223.268667 | Y12: 2222.260847 | Z12: 1110.626513 | AA12: 740.0817356 | AB12: 2241.279227 | AC12: 2240.271407 | AD12: 1119.631793 | AE12: 746.0852556
B13: 273.0960852 | D13: 8
D14: 9
D15: 10 | P15: =IF(ISNUMBER($E15),(IF(ISNUMBER($E16),OFFSET($I15,0,INT($P$5)*2)-$AI$6-$AI$7,IF($B$2="なし",OFFSET($I15,0,INT($P$5)*2)-$AI$7,OFFSET($I15,0,INT($P$5)*2)-$AI$6-$AI$7))),"") ->  | Q15: =IF(ISNUMBER($P15),($P15+Q$5*$AI$2)/(-1*Q$5),"") ->  | T15: =IF(ISNUMBER(P15),P15+$AI$7,"") ->  | X15: =IF(ISNUMBER($E15),(IF(ISNUMBER($E16),OFFSET($I15,0,INT($P$5)*2)-$AI$7,IF($B$2="なし","",OFFSET($I15,0,INT($P$5)*2)-$AI$7))),"") ->  | AB15: =IF(ISNUMBER(X15),X15+$AI$7,"") -> 
D16: 11
D17: 12
D18: 13
D19: 14
C20: =IF(ISNUMBER(F20),C19+1,"") ->  | D20: 15
C21: =IF(ISNUMBER(F21),C20+1,"") ->  | D21: 16
D22: 17 | U22: =IF(ISNUMBER($T22),($T22+U$5*$AI$2)/(-1*U$5),"") ->  | Y22: =IF(ISNUMBER($X22),($X22+Y$5*$AI$2)/(-1*Y$5),"") ->  | AC22: =IF(ISNUMBER($AB22),($AB22+AC$5*$AI$2)/(-1*AC$5),"") -> 
D23: 18
D24: 19
D25: 20
D26: 21
D27: 22
C28: =IF(ISNUMBER(F28),C27+1,"") ->  | D28: 23
C29: =IF(ISNUMBER(F29),C28+1,"") ->  | D29: 24
Q31: w | R31: 5'-p | U31: x | V31: 5'-p -H2O | Y31: y | Z31: 5'-OH | AC31: z | AD31: 5'-OH -H2O
C32: =IF(ISNUMBER(F32),1,"") -> 1 | D32: 1 | E32: =IF(ISNUMBER(MATCH(D32,INDIRECT($A$8&"!q$7:q$67"),0)),MATCH(D32,INDIRECT($A$8&"!q$7:q$67"),0),"") -> 7 | F32: =IF(ISNUMBER($E32),INDEX(INDIRECT($A$8&"!h$7:h$66"),$E32,1),"") -> 6 | G32: =IF(ISNUMBER($E32),INDEX(INDIRECT($A$8&"!i$7:i$66"),$E32,1),"") -> 7 : 7 | H32: =IF(ISNUMBER($E32),INDEX(INDIRECT($A$8&"!F$7:F$66"),$E32,1),"") -> Kp | I32: =IF(ISNUMBER($E32),INDEX(INDIRECT($A$8&"!k$7:k$66"),$E32,1),"") -> 377.247202 | J32: =IF(ISNUMBER($E32),INDEX(INDIRECT($A$8&"!l$7:l$66"),$E32,1),"") -> 359.231922 | K32: =IF(ISNUMBER($E32),INDEX(INDIRECT($A$8&"!m$7:m$66"),$E32,1),"") -> 377.073649 | L32: =IF(ISNUMBER($E32),INDEX(INDIRECT($A$8&"!n$7:n$66"),$E32,1),"") -> 359.0630843 | M32: =IF(ISNUMBER($E32),INDEX(INDIRECT($A$8&"!o$7:o$66"),$E32,1),"") -> 377.073649 | N32: =IF(ISNUMBER($E32),INDEX(INDIRECT($A$8&"!p$7:p$66"),$E32,1),"") -> 359.0630843 | P32: =IF(ISNUMBER($E32),(IF(ISNUMBER($E33),OFFSET($I32,0,$P$5*2)+$AI$6,IF($B$1="なし","",OFFSET($I32,0,$P$5*2)))),"") -> 457.039979 | Q32: =IF(ISNUMBER($P32),($P32+Q$5*$AI$2)/(-1*Q$5),"") -> 456.032159 | R32: 227.5121695 | S32: 151.3388397 | T32: =IF(ISNUMBER(P32),P32-$AI$7,"") -> 439.029419 | U32: =IF(ISNUMBER($T32),($T32+U$5*$AI$2)/(-1*U$5),"") -> 438.021599 | V32: 218.5068895 | W32: 145.3353197 | X32: =IF(ISNUMBER($E32),(IF(ISNUMBER($E33),OFFSET($I32,0,$P$5*2),IF($B$1="なし",OFFSET($I32,0,$P$5*2),OFFSET($I32,0,$P$5*2)-$AI$6))),"") -> 377.073649 | Y32: =IF(ISNUMBER($X32),($X32+Y$5*$AI$2)/(-1*Y$5),"") -> 376.065829 | Z32: 187.5290045 | AA32: 124.6833963 | AB32: =IF(ISNUMBER(X32),X32-$AI$7,"") -> 359.063089 | AC32: =IF(ISNUMBER($AB32),($AB32+AC$5*$AI$2)/(-1*AC$5),"") -> 358.055269 | AD32: 178.5237245 | AE32: 118.6798763
C33: 2 | D33: 2 | E33: 6 | F33: 5 | G33: 6 : 7 | H33: UKp | I33: 683.413204 | J33: 665.397924 | K33: 683.0989508 | L33: 665.0883862 | M33: 683.0989508 | N33: 665.0883862 | P33: 763.0652808 | Q33: 762.0574608 | R33: 380.5248204 | S33: 253.3472736 | T33: =IF(ISNUMBER(P33),P33-$AI$7,"") -> 745.0547208 | U33: 744.0469008 | V33: 371.5195404 | W33: 247.3437536 | X33: 683.0989508 | Y33: 682.0911308 | Z33: 340.5416554 | AA33: 226.6918303 | AB33: =IF(ISNUMBER(X33),X33-$AI$7,"") -> 665.0883908 | AC33: 664.0805708 | AD33: 331.5363754 | AE33: 220.6883103
C34: 3 | D34: 3 | E34: 5 | F34: 4 | G34: 5 : 7 | H34: AUKp | I34: 1012.619146 | J34: 994.603866 | K34: 1012.15147 | L34: 994.1409058 | M34: 1012.15147 | N34: 994.1409058 | P34: 1092.1178 | Q34: 1091.10998 | R34: 545.0510802 | S34: 363.0314468 | T34: 1074.10724 | U34: 1073.09942 | V34: 536.0458002 | W34: 357.0279268 | X34: 1012.15147 | Y34: 1011.14365 | Z34: 505.0679152 | AA34: 336.3760035 | AB34: 994.1409105 | AC34: 993.1330905 | AD34: 496.0626352 | AE34: 330.3724835
C35: 4 | D35: 4 | E35: 4 | F35: 3 | G35: 4 : 7 | H35: ◊AUKp | I35: 1376.821228 | J35: 1358.805948 | K35: 1376.182252 | L35: 1358.171687 | M35: 1376.182252 | N35: 1358.171687 | P35: 1456.148582 | Q35: 1455.140762 | R35: 727.0664708 | S35: 484.3750405 | T35: 1438.138022 | U35: 1437.130202 | V35: 718.0611908 | W35: 478.3715205 | X35: 1376.182252 | Y35: 1375.174432 | Z35: 687.0833058 | AA35: 457.7195972 | AB35: 1358.171692 | AC35: 1357.163872 | AD35: 678.0780258 | AE35: 451.7160772
C36: 5 | D36: 5 | E36: 3 | F36: 2 | G36: 3 : 7 | H36: Ç◊AUKp | I36: 1630.95573 | J36: 1612.94045 | K36: 1630.212639 | L36: 1612.202074 | M36: 1630.212639 | N36: 1612.202074 | P36: 1710.178969 | Q36: 1709.171149 | R36: 854.0816644 | S36: 569.0518363 | T36: 1692.168409 | U36: 1691.160589 | V36: 845.0763844 | W36: 563.0483163 | X36: 1630.212639 | Y36: 1629.204819 | Z36: 814.0984994 | AA36: 542.3963929 | AB36: 1612.202079 | AC36: 1611.194259 | AD36: 805.0932194 | AE36: 536.3928729
C37: 6 | D37: 6 | E37: 2 | F37: 1 | G37: 2 : 7 | H37: CÇ◊AUKp | I37: 1936.136972 | J37: 1918.121692 | K37: 1935.253925 | L37: 1917.24336 | M37: 1935.253925 | N37: 1917.24336 | P37: 2015.220255 | Q37: 2014.212435 | R37: 1006.602308 | S37: 670.732265 | T37: 1997.209695 | U37: 1996.201875 | V37: 997.5970275 | W37: 664.728745 | X37: 1935.253925 | Y37: 1934.246105 | Z37: 966.6191425 | AA37: 644.0768217 | AB37: 1917.243365 | AC37: 1916.235545 | AD37: 957.6138625 | AE37: 638.0733017
C38: 7 | D38: 7 | E38: 1 | F38: 0 | G38: 1 : 7 | H38: UCÇ◊AUKp | I38: 2242.302974 | J38: 2224.287694 | K38: 2241.279227 | L38: 2223.268662 | M38: 2241.279227 | N38: 2223.268662 | X38: 2241.279227 | Y38: 2240.271407 | Z38: 1119.631793 | AA38: 746.0852556 | AB38: 2223.268667 | AC38: 2222.260847 | AD38: 1110.626513 | AE38: 740.0817356
D39: 8
D40: 9
D41: 10
D42: 11
D43: 12
D44: 13
D45: 14
C46: =IF(ISNUMBER(F46),C45+1,"") ->  | D46: 15 | T46: =IF(ISNUMBER(P46),P46-$AI$7,"") ->  | AB46: =IF(ISNUMBER(X46),X46-$AI$7,"") -> 
D47: 16
D48: 17 | U48: =IF(ISNUMBER($T48),($T48+U$5*$AI$2)/(-1*U$5),"") ->  | Y48: =IF(ISNUMBER($X48),($X48+Y$5*$AI$2)/(-1*Y$5),"") ->  | AC48: =IF(ISNUMBER($AB48),($AB48+AC$5*$AI$2)/(-1*AC$5),"") -> 
D49: 18
D50: 19
D51: 20
D52: 21
D53: 22
D54: 23
D55: 24
B57: +additional mass1 | P57: =P4 -> mono | Q57: a | R57: 3'-OH-H2O | U57: b | V57: 3'-OH | Y57: c | Z57: 3'-p -H2O | AC57: d | AD57: 3'-p
C58: No. | D58: No. | E58: 列 | F58: position | G58: position | H58: fragment | I58: ave | J58: ave>p | K58: mono | L58: mono>p | M58: top | N58: top>p | O58: additional mass | P58: =IF(P57="ave",0,IF(P57="ave>p",0.5,IF(P57="mono",1,IF(P57="mono>p",1.5,IF(P57="top",2,2.5))))) -> 1 | Q58: =$G$3 -> -1 | R58: =Q58-1 -> -2 | S58: =R58-1 -> -3 | U58: =$G$3 -> -1 | V58: =U58-1 -> -2 | W58: =V58-1 -> -3 | Y58: =$G$3 -> -1 | Z58: =Y58-1 -> -2 | AA58: =Z58-1 -> -3 | AC58: =$G$3 -> -1 | AD58: =AC58-1 -> -2 | AE58: =AD58-1 -> -3
C59: =IF(ISNUMBER(F59),1,"") -> 1 | D59: 1 | E59: =IF(ISNUMBER(MATCH(D59,INDIRECT($A$7&"!q$7:q$67"),0)),MATCH(D59,INDIRECT($A$7&"!q$7:q$67"),0),"") -> 7 | F59: =IF(ISNUMBER($E59),INDEX(INDIRECT($A$7&"!h$7:h$66"),$E59,1),"") -> 6 | G59: =IF(ISNUMBER($E59),INDEX(INDIRECT($A$7&"!i$7:i$66"),$E59,1),"") -> 1 : 1 | H59: =IF(ISNUMBER($E59),INDEX(INDIRECT($A$7&"!F$7:F$66"),$E59,1),"") -> Up | I59: =IF(ISNUMBER($E59),INDEX(INDIRECT($A$7&"!k$7:k$66"),$E59,1),"") -> 324.181282 | J59: =IF(ISNUMBER($E59),INDEX(INDIRECT($A$7&"!l$7:l$66"),$E59,1),"") -> 306.166002 | K59: =IF(ISNUMBER($E59),INDEX(INDIRECT($A$7&"!m$7:m$66"),$E59,1),"") -> 324.0358665 | L59: =IF(ISNUMBER($E59),INDEX(INDIRECT($A$7&"!n$7:n$66"),$E59,1),"") -> 306.0253018 | M59: =IF(ISNUMBER($E59),INDEX(INDIRECT($A$7&"!o$7:o$66"),$E59,1),"") -> 324.0358665 | N59: =IF(ISNUMBER($E59),INDEX(INDIRECT($A$7&"!p$7:p$66"),$E59,1),"") -> 306.0253018 | O59: =$AI$5 -> 53.02655 | P59: =IF(ISNUMBER(P6),P6+$O59,"") -> 279.0855265 | Q59: =IF(ISNUMBER($P59),($P59+Q$5*$AI$2)/(-1*Q$5),"") -> 278.0777065 | R59: 138.5349433 | S59: 92.02068884 | T59: =IF(ISNUMBER(T6),T6+$O59,"") -> 297.0960865 | U59: =IF(ISNUMBER($T59),($T59+U$5*$AI$2)/(-1*U$5),"") -> 296.0882665 | V59: 147.5402233 | W59: 98.02420884 | X59: =IF(ISNUMBER(X6),X6+$O59,"") -> 359.0518565 | Y59: =IF(ISNUMBER($X59),($X59+Y$5*$AI$2)/(-1*Y$5),"") -> 358.0440365 | Z59: 178.5181083 | AA59: 118.6761322 | AB59: =IF(ISNUMBER(AB6),AB6+$O59,"") -> 377.0624165 | AC59: =IF(ISNUMBER($AB59),($AB59+AC$5*$AI$2)/(-1*AC$5),"") -> 376.0545965 | AD59: 187.5233883 | AE59: 124.6796522
C60: =IF(ISNUMBER(F60),C59+1,"") -> 2 | D60: 2 | E60: =IF(ISNUMBER(MATCH(D60,INDIRECT($A$7&"!q$7:q$67"),0)),MATCH(D60,INDIRECT($A$7&"!q$7:q$67"),0),"") -> 6 | F60: =IF(ISNUMBER($E60),INDEX(INDIRECT($A$7&"!h$7:h$66"),$E60,1),"") -> 5 | G60: =IF(ISNUMBER($E60),INDEX(INDIRECT($A$7&"!i$7:i$66"),$E60,1),"") -> 1 : 2 | H60: UCp | I60: =IF(ISNUMBER($E60),INDEX(INDIRECT($A$7&"!k$7:k$66"),$E60,1),"") -> 629.362524 | J60: =IF(ISNUMBER($E60),INDEX(INDIRECT($A$7&"!l$7:l$66"),$E60,1),"") -> 611.347244 | K60: =IF(ISNUMBER($E60),INDEX(INDIRECT($A$7&"!m$7:m$66"),$E60,1),"") -> 629.0771528 | L60: =IF(ISNUMBER($E60),INDEX(INDIRECT($A$7&"!n$7:n$66"),$E60,1),"") -> 611.0665881 | M60: =IF(ISNUMBER($E60),INDEX(INDIRECT($A$7&"!o$7:o$66"),$E60,1),"") -> 629.0771528 | N60: =IF(ISNUMBER($E60),INDEX(INDIRECT($A$7&"!p$7:p$66"),$E60,1),"") -> 611.0665881 | O60: =$O$59 -> 53.02655 | P60: 584.1268128 | Q60: 583.1189928 | R60: 291.0555864 | S60: 193.7011176 | T60: 602.1373728 | U60: 601.1295528 | V60: 300.0608664 | W60: 199.7046376 | X60: 664.0931428 | Y60: 663.0853228 | Z60: 331.0387514 | AA60: 220.3565609 | AB60: 682.1037028 | AC60: 681.0958828 | AD60: 340.0440314 | AE60: 226.3600809
C61: 3 | D61: 3 | E61: 5 | F61: 4 | G61: 1 : 3 | H61: UCÇp | I61: 883.497026 | J61: 865.481746 | K61: 883.10754 | L61: 865.0969753 | M61: 883.10754 | N61: 865.0969753 | O61: =$O$59 -> 53.02655 | P61: 838.1572 | Q61: 837.14938 | R61: 418.07078 | S61: 278.3779133 | T61: 856.16776 | U61: 855.15994 | V61: 427.07606 | W61: 284.3814333 | X61: 918.12353 | Y61: 917.11571 | Z61: 458.053945 | AA61: 305.0333567 | AB61: 936.13409 | AC61: 935.12627 | AD61: 467.059225 | AE61: 311.0368767
C62: 4 | D62: 4 | E62: 4 | F62: 3 | G62: 1 : 4 | H62: UCÇ◊p | I62: 1247.699108 | J62: 1229.683828 | K62: 1247.138321 | L62: 1229.127756 | M62: 1247.138321 | N62: 1229.127756 | O62: 53.02655 | P62: 1202.187981 | Q62: 1201.180161 | R62: 600.0861706 | S62: 399.721507 | T62: 1220.198541 | U62: 1219.190721 | V62: 609.0914506 | W62: 405.725027 | X62: 1282.154311 | Y62: 1281.146491 | Z62: 640.0693356 | AA62: 426.3769504 | AB62: 1300.164871 | AC62: 1299.157051 | AD62: 649.0746156 | AE62: 432.3804704
C63: 5 | D63: 5 | E63: 3 | F63: 2 | G63: 1 : 5 | H63: UCÇ◊Ap | I63: 1576.90505 | J63: 1558.88977 | K63: 1576.190841 | L63: 1558.180276 | M63: 1576.190841 | N63: 1558.180276 | O63: 53.02655 | P63: 1531.240501 | Q63: 1530.232681 | R63: 764.6124304 | S63: 509.4056803 | T63: 1549.251061 | U63: 1548.243241 | V63: 773.6177104 | W63: 515.4092003 | X63: 1611.206831 | Y63: 1610.199011 | Z63: 804.5955954 | AA63: 536.0611236 | AB63: 1629.217391 | AC63: 1628.209571 | AD63: 813.6008754 | AE63: 542.0646436
C64: 6 | D64: 6 | E64: 2 | F64: 1 | G64: 1 : 6 | H64: UCÇ◊AUp | I64: 1883.071052 | J64: 1865.055772 | K64: 1882.216143 | L64: 1864.205578 | M64: 1882.216143 | N64: 1864.205578 | O64: 53.02655 | P64: 1837.265803 | Q64: 1836.257983 | R64: 917.6250813 | S64: 611.4141142 | T64: 1855.276363 | U64: 1854.268543 | V64: 926.6303613 | W64: 617.4176342 | X64: 1917.232133 | Y64: 1916.224313 | Z64: 957.6082463 | AA64: 638.0695575 | AB64: 1935.242693 | AC64: 1934.234873 | AD64: 966.6135263 | AE64: 644.0730775
C65: 7 | D65: 7 | E65: 1 | F65: 0 | G65: 1 : 7 | H65: UCÇ◊AUKp | I65: 2242.302974 | J65: 2224.287694 | K65: 2241.279227 | L65: 2223.268662 | M65: 2241.279227 | N65: 2223.268662 | O65: 53.02655 | P65: 2196.328887 | Q65: 2195.321067 | R65: 1097.156623 | S65: 731.101809 | T65: 2214.339447 | U65: 2213.331627 | V65: 1106.161903 | W65: 737.105329 | X65: 2276.295217 | Y65: 2275.287397 | Z65: 1137.139788 | AA65: 757.7572523 | AB65: 2294.305777 | AC65: 2293.297957 | AD65: 1146.145068 | AE65: 763.7607723
D66: 8 | O66: 53.02655
D67: 9 | O67: 53.02655
D68: 10 | O68: 53.02655
D69: 11 | O69: 53.02655
D70: 12 | O70: 53.02655
D71: 13 | O71: 53.02655
D72: 14 | O72: 53.02655
C73: =IF(ISNUMBER(F73),C72+1,"") ->  | D73: 15 | O73: 53.02655 | P73: =IF(ISNUMBER(P20),P20+$O73,"") ->  | T73: =IF(ISNUMBER(T20),T20+$O73,"") ->  | X73: =IF(ISNUMBER(X20),X20+$O73,"") ->  | AB73: =IF(ISNUMBER(AB20),AB20+$O73,"") -> 
D74: 16 | O74: 53.02655
D75: 17 | O75: 53.02655 | U75: =IF(ISNUMBER($T75),($T75+U$5*$AI$2)/(-1*U$5),"") ->  | Y75: =IF(ISNUMBER($X75),($X75+Y$5*$AI$2)/(-1*Y$5),"") ->  | AC75: =IF(ISNUMBER($AB75),($AB75+AC$5*$AI$2)/(-1*AC$5),"") -> 
D76: 18 | O76: 53.02655
D77: 19 | O77: 53.02655
D78: 20 | O78: 53.02655
D79: 21 | O79: 53.02655
D80: 22 | O80: 53.02655
D81: 23 | O81: 53.02655
D82: 24 | O82: 53.02655
Q84: w | R84: 5'-p | U84: x | V84: 5'-p -H2O | Y84: y | Z84: 5'-OH | AC84: z | AD84: 5'-OH -H2O
C85: =IF(ISNUMBER(F85),1,"") -> 1 | D85: 1 | E85: =IF(ISNUMBER(MATCH(D85,INDIRECT($A$8&"!q$7:q$67"),0)),MATCH(D85,INDIRECT($A$8&"!q$7:q$67"),0),"") -> 7 | F85: =IF(ISNUMBER($E85),INDEX(INDIRECT($A$8&"!h$7:h$66"),$E85,1),"") -> 6 | G85: =IF(ISNUMBER($E85),INDEX(INDIRECT($A$8&"!i$7:i$66"),$E85,1),"") -> 7 : 7 | H85: =IF(ISNUMBER($E85),INDEX(INDIRECT($A$8&"!F$7:F$66"),$E85,1),"") -> Kp | I85: =IF(ISNUMBER($E85),INDEX(INDIRECT($A$8&"!k$7:k$66"),$E85,1),"") -> 377.247202 | J85: =IF(ISNUMBER($E85),INDEX(INDIRECT($A$8&"!l$7:l$66"),$E85,1),"") -> 359.231922 | K85: =IF(ISNUMBER($E85),INDEX(INDIRECT($A$8&"!m$7:m$66"),$E85,1),"") -> 377.073649 | L85: =IF(ISNUMBER($E85),INDEX(INDIRECT($A$8&"!n$7:n$66"),$E85,1),"") -> 359.0630843 | M85: =IF(ISNUMBER($E85),INDEX(INDIRECT($A$8&"!o$7:o$66"),$E85,1),"") -> 377.073649 | N85: =IF(ISNUMBER($E85),INDEX(INDIRECT($A$8&"!p$7:p$66"),$E85,1),"") -> 359.0630843 | O85: =$O$59 -> 53.02655 | P85: =IF(ISNUMBER(P32),P32+$O85,"") -> 510.066529 | Q85: =IF(ISNUMBER($P85),($P85+Q$5*$AI$2)/(-1*Q$5),"") -> 509.058709 | R85: 254.0254445 | S85: 169.0143563 | T85: =IF(ISNUMBER(T32),T32+$O85,"") -> 492.055969 | U85: =IF(ISNUMBER($T85),($T85+U$5*$AI$2)/(-1*U$5),"") -> 491.048149 | V85: 245.0201645 | W85: 163.0108363 | X85: =IF(ISNUMBER(X32),X32+$O85,"") -> 430.100199 | Y85: =IF(ISNUMBER($X85),($X85+Y$5*$AI$2)/(-1*Y$5),"") -> 429.092379 | Z85: 214.0422795 | AA85: 142.358913 | AB85: =IF(ISNUMBER(AB32),AB32+$O85,"") -> 412.089639 | AC85: =IF(ISNUMBER($AB85),($AB85+AC$5*$AI$2)/(-1*AC$5),"") -> 411.081819 | AD85: 205.0369995 | AE85: 136.355393
C86: =IF(ISNUMBER(F86),C85+1,"") -> 2 | D86: 2 | E86: 6 | F86: 5 | G86: 6 : 7 | H86: UKp | I86: 683.413204 | J86: 665.397924 | K86: 683.0989508 | L86: 665.0883862 | M86: 683.0989508 | N86: 665.0883862 | O86: =$O$59 -> 53.02655 | P86: 816.0918308 | Q86: 815.0840108 | R86: 407.0380954 | S86: 271.0227903 | T86: 798.0812708 | U86: 797.0734508 | V86: 398.0328154 | W86: 265.0192703 | X86: 736.1255008 | Y86: 735.1176808 | Z86: 367.0549304 | AA86: 244.3673469 | AB86: 718.1149408 | AC86: 717.1071208 | AD86: 358.0496504 | AE86: 238.3638269
C87: 3 | D87: 3 | E87: 5 | F87: 4 | G87: 5 : 7 | H87: AUKp | I87: 1012.619146 | J87: 994.603866 | K87: 1012.15147 | L87: 994.1409058 | M87: 1012.15147 | N87: 994.1409058 | O87: 53.02655 | P87: 1145.14435 | Q87: 1144.13653 | R87: 571.5643552 | S87: 380.7069635 | T87: 1127.13379 | U87: 1126.12597 | V87: 562.5590752 | W87: 374.7034435 | X87: 1065.17802 | Y87: 1064.1702 | Z87: 531.5811902 | AA87: 354.0515202 | AB87: 1047.16746 | AC87: 1046.15964 | AD87: 522.5759102 | AE87: 348.0480002
C88: 4 | D88: 4 | E88: 4 | F88: 3 | G88: 4 : 7 | H88: ◊AUKp | I88: 1376.821228 | J88: 1358.805948 | K88: 1376.182252 | L88: 1358.171687 | M88: 1376.182252 | N88: 1358.171687 | O88: 53.02655 | P88: 1509.175132 | Q88: 1508.167312 | R88: 753.5797458 | S88: 502.0505572 | T88: 1491.164572 | U88: 1490.156752 | V88: 744.5744658 | W88: 496.0470372 | X88: 1429.208802 | Y88: 1428.200982 | Z88: 713.5965808 | AA88: 475.3951139 | AB88: 1411.198242 | AC88: 1410.190422 | AD88: 704.5913008 | AE88: 469.3915939
C89: 5 | D89: 5 | E89: 3 | F89: 2 | G89: 3 : 7 | H89: Ç◊AUKp | I89: 1630.95573 | J89: 1612.94045 | K89: 1630.212639 | L89: 1612.202074 | M89: 1630.212639 | N89: 1612.202074 | O89: 53.02655 | P89: 1763.205519 | Q89: 1762.197699 | R89: 880.5949394 | S89: 586.7273529 | T89: 1745.194959 | U89: 1744.187139 | V89: 871.5896594 | W89: 580.7238329 | X89: 1683.239189 | Y89: 1682.231369 | Z89: 840.6117744 | AA89: 560.0719096 | AB89: 1665.228629 | AC89: 1664.220809 | AD89: 831.6064944 | AE89: 554.0683896
C90: 6 | D90: 6 | E90: 2 | F90: 1 | G90: 2 : 7 | H90: CÇ◊AUKp | I90: 1936.136972 | J90: 1918.121692 | K90: 1935.253925 | L90: 1917.24336 | M90: 1935.253925 | N90: 1917.24336 | O90: 53.02655 | P90: 2068.246805 | Q90: 2067.238985 | R90: 1033.115583 | S90: 688.4077817 | T90: 2050.236245 | U90: 2049.228425 | V90: 1024.110303 | W90: 682.4042617 | X90: 1988.280475 | Y90: 1987.272655 | Z90: 993.1324175 | AA90: 661.7523384 | AB90: 1970.269915 | AC90: 1969.262095 | AD90: 984.1271375 | AE90: 655.7488184
C91: 7 | D91: 7 | E91: 1 | F91: 0 | G91: 1 : 7 | H91: UCÇ◊AUKp | I91: 2242.302974 | J91: 2224.287694 | K91: 2241.279227 | L91: 2223.268662 | M91: 2241.279227 | N91: 2223.268662 | O91: 53.02655 | X91: 2294.305777 | Y91: 2293.297957 | Z91: 1146.145068 | AA91: 763.7607723 | AB91: 2276.295217 | AC91: 2275.287397 | AD91: 1137.139788 | AE91: 757.7572523
D92: 8 | O92: 53.02655
D93: 9 | O93: 53.02655
D94: 10 | O94: 53.02655
D95: 11 | O95: 53.02655
D96: 12 | O96: 53.02655
D97: 13 | O97: 53.02655
D98: 14 | O98: 53.02655
C99: =IF(ISNUMBER(F99),C98+1,"") ->  | D99: 15 | O99: 53.02655 | P99: =IF(ISNUMBER(P46),P46+$O99,"") ->  | T99: =IF(ISNUMBER(T46),T46+$O99,"") ->  | X99: =IF(ISNUMBER(X46),X46+$O99,"") ->  | AB99: =IF(ISNUMBER(AB46),AB46+$O99,"") -> 
D100: 16 | O100: 53.02655
D101: 17 | O101: 53.02655 | U101: =IF(ISNUMBER($T101),($T101+U$5*$AI$2)/(-1*U$5),"") ->  | Y101: =IF(ISNUMBER($X101),($X101+Y$5*$AI$2)/(-1*Y$5),"") ->  | AC101: =IF(ISNUMBER($AB101),($AB101+AC$5*$AI$2)/(-1*AC$5),"") -> 
D102: 18 | O102: 53.02655
D103: 19 | O103: 53.02655
D104: 20 | O104: 53.02655
D105: 21 | O105: 53.02655
D106: 22 | O106: 53.02655
D107: 23 | O107: 53.02655
D108: 24 | O108: 53.02655
B110: +additional mass2 | P110: =P57 -> mono | Q110: a | R110: 3'-OH-H2O | U110: b | V110: 3'-OH | Y110: c | Z110: 3'-p -H2O | AC110: d | AD110: 3'-p
C111: No. | D111: No. | E111: 列 | F111: position | G111: position | H111: fragment | I111: ave | J111: ave>p | K111: mono | L111: mono>p | M111: top | N111: top>p | O111: additional mass | P111: =IF(P110="ave",0,IF(P110="ave>p",0.5,IF(P110="mono",1,IF(P110="mono>p",1.5,IF(P110="top",2,2.5))))) -> 1 | Q111: =$G$3 -> -1 | R111: =Q111-1 -> -2 | S111: =R111-1 -> -3 | U111: =$G$3 -> -1 | V111: =U111-1 -> -2 | W111: =V111-1 -> -3 | Y111: =$G$3 -> -1 | Z111: =Y111-1 -> -2 | AA111: =Z111-1 -> -3 | AC111: =$G$3 -> -1 | AD111: =AC111-1 -> -2 | AE111: =AD111-1 -> -3
C112: =IF(ISNUMBER(F112),1,"") -> 1 | D112: 1 | E112: =IF(ISNUMBER(MATCH(D112,INDIRECT($A$7&"!q$7:q$67"),0)),MATCH(D112,INDIRECT($A$7&"!q$7:q$67"),0),"") -> 7 | F112: =IF(ISNUMBER($E112),INDEX(INDIRECT($A$7&"!h$7:h$66"),$E112,1),"") -> 6 | G112: =IF(ISNUMBER($E112),INDEX(INDIRECT($A$7&"!i$7:i$66"),$E112,1),"") -> 1 : 1 | H112: =IF(ISNUMBER($E112),INDEX(INDIRECT($A$7&"!F$7:F$66"),$E112,1),"") -> Up | I112: =IF(ISNUMBER($E112),INDEX(INDIRECT($A$7&"!k$7:k$66"),$E112,1),"") -> 324.181282 | J112: =IF(ISNUMBER($E112),INDEX(INDIRECT($A$7&"!l$7:l$66"),$E112,1),"") -> 306.166002 | K112: =IF(ISNUMBER($E112),INDEX(INDIRECT($A$7&"!m$7:m$66"),$E112,1),"") -> 324.0358665 | L112: =IF(ISNUMBER($E112),INDEX(INDIRECT($A$7&"!n$7:n$66"),$E112,1),"") -> 306.0253018 | M112: =IF(ISNUMBER($E112),INDEX(INDIRECT($A$7&"!o$7:o$66"),$E112,1),"") -> 324.0358665 | N112: =IF(ISNUMBER($E112),INDEX(INDIRECT($A$7&"!p$7:p$66"),$E112,1),"") -> 306.0253018 | O112: =$AI$5*2 -> 106.0531 | P112: =IF(ISNUMBER(P6),P6+$O112,"") -> 332.1120765 | Q112: =IF(ISNUMBER($P112),($P112+Q$5*$AI$2)/(-1*Q$5),"") -> 331.1042565 | R112: 165.0482183 | S112: 109.6962055 | T112: =IF(ISNUMBER(T6),T6+$O112,"") -> 350.1226365 | U112: =IF(ISNUMBER($T112),($T112+U$5*$AI$2)/(-1*U$5),"") -> 349.1148165 | V112: 174.0534983 | W112: 115.6997255 | X112: =IF(ISNUMBER(X6),X6+$O112,"") -> 412.0784065 | Y112: =IF(ISNUMBER($X112),($X112+Y$5*$AI$2)/(-1*Y$5),"") -> 411.0705865 | Z112: 205.0313833 | AA112: 136.3516488 | AB112: =IF(ISNUMBER(AB6),AB6+$O112,"") -> 430.0889665 | AC112: =IF(ISNUMBER($AB112),($AB112+AC$5*$AI$2)/(-1*AC$5),"") -> 429.0811465 | AD112: 214.0366633 | AE112: 142.3551688
C113: =IF(ISNUMBER(F113),C112+1,"") -> 2 | D113: 2 | E113: =IF(ISNUMBER(MATCH(D113,INDIRECT($A$7&"!q$7:q$67"),0)),MATCH(D113,INDIRECT($A$7&"!q$7:q$67"),0),"") -> 6 | F113: =IF(ISNUMBER($E113),INDEX(INDIRECT($A$7&"!h$7:h$66"),$E113,1),"") -> 5 | G113: =IF(ISNUMBER($E113),INDEX(INDIRECT($A$7&"!i$7:i$66"),$E113,1),"") -> 1 : 2 | H113: UCp | I113: =IF(ISNUMBER($E113),INDEX(INDIRECT($A$7&"!k$7:k$66"),$E113,1),"") -> 629.362524 | J113: =IF(ISNUMBER($E113),INDEX(INDIRECT($A$7&"!l$7:l$66"),$E113,1),"") -> 611.347244 | K113: =IF(ISNUMBER($E113),INDEX(INDIRECT($A$7&"!m$7:m$66"),$E113,1),"") -> 629.0771528 | L113: =IF(ISNUMBER($E113),INDEX(INDIRECT($A$7&"!n$7:n$66"),$E113,1),"") -> 611.0665881 | M113: =IF(ISNUMBER($E113),INDEX(INDIRECT($A$7&"!o$7:o$66"),$E113,1),"") -> 629.0771528 | N113: =IF(ISNUMBER($E113),INDEX(INDIRECT($A$7&"!p$7:p$66"),$E113,1),"") -> 611.0665881 | O113: =$O$112 -> 106.0531 | P113: 637.1533628 | Q113: 636.1455428 | R113: 317.5688614 | S113: 211.3766343 | T113: 655.1639228 | U113: 654.1561028 | V113: 326.5741414 | W113: 217.3801543 | X113: 717.1196928 | Y113: 716.1118728 | Z113: 357.5520264 | AA113: 238.0320776 | AB113: 735.1302528 | AC113: 734.1224328 | AD113: 366.5573064 | AE113: 244.0355976
C114: 3 | D114: 3 | E114: 5 | F114: 4 | G114: 1 : 3 | H114: UCÇp | I114: 883.497026 | J114: 865.481746 | K114: 883.10754 | L114: 865.0969753 | M114: 883.10754 | N114: 865.0969753 | O114: =$O$112 -> 106.0531 | P114: 891.18375 | Q114: 890.17593 | R114: 444.584055 | S114: 296.05343 | T114: 909.19431 | U114: 908.18649 | V114: 453.589335 | W114: 302.05695 | X114: 971.15008 | Y114: 970.14226 | Z114: 484.56722 | AA114: 322.7088733 | AB114: 989.16064 | AC114: 988.15282 | AD114: 493.5725 | AE114: 328.7123933
C115: 4 | D115: 4 | E115: 4 | F115: 3 | G115: 1 : 4 | H115: UCÇ◊p | I115: 1247.699108 | J115: 1229.683828 | K115: 1247.138321 | L115: 1229.127756 | M115: 1247.138321 | N115: 1229.127756 | O115: 106.0531 | P115: 1255.214531 | Q115: 1254.206711 | R115: 626.5994456 | S115: 417.3970237 | T115: 1273.225091 | U115: 1272.217271 | V115: 635.6047256 | W115: 423.4005437 | X115: 1335.180861 | Y115: 1334.173041 | Z115: 666.5826106 | AA115: 444.052467 | AB115: 1353.191421 | AC115: 1352.183601 | AD115: 675.5878906 | AE115: 450.055987
C116: 5 | D116: 5 | E116: 3 | F116: 2 | G116: 1 : 5 | H116: UCÇ◊Ap | I116: 1576.90505 | J116: 1558.88977 | K116: 1576.190841 | L116: 1558.180276 | M116: 1576.190841 | N116: 1558.180276 | O116: 106.0531 | P116: 1584.267051 | Q116: 1583.259231 | R116: 791.1257054 | S116: 527.0811969 | T116: 1602.277611 | U116: 1601.269791 | V116: 800.1309854 | W116: 533.0847169 | X116: 1664.233381 | Y116: 1663.225561 | Z116: 831.1088704 | AA116: 553.7366403 | AB116: 1682.243941 | AC116: 1681.236121 | AD116: 840.1141504 | AE116: 559.7401603
C117: 6 | D117: 6 | E117: 2 | F117: 1 | G117: 1 : 6 | H117: UCÇ◊AUp | I117: 1883.071052 | J117: 1865.055772 | K117: 1882.216143 | L117: 1864.205578 | M117: 1882.216143 | N117: 1864.205578 | O117: 106.0531 | P117: 1890.292353 | Q117: 1889.284533 | R117: 944.1383563 | S117: 629.0896309 | T117: 1908.302913 | U117: 1907.295093 | V117: 953.1436363 | W117: 635.0931509 | X117: 1970.258683 | Y117: 1969.250863 | Z117: 984.1215213 | AA117: 655.7450742 | AB117: 1988.269243 | AC117: 1987.261423 | AD117: 993.1268013 | AE117: 661.7485942
C118: 7 | D118: 7 | E118: 1 | F118: 0 | G118: 1 : 7 | H118: UCÇ◊AUKp | I118: 2242.302974 | J118: 2224.287694 | K118: 2241.279227 | L118: 2223.268662 | M118: 2241.279227 | N118: 2223.268662 | O118: 106.0531 | P118: 2249.355437 | Q118: 2248.347617 | R118: 1123.669898 | S118: 748.7773256 | T118: 2267.365997 | U118: 2266.358177 | V118: 1132.675178 | W118: 754.7808456 | X118: 2329.321767 | Y118: 2328.313947 | Z118: 1163.653063 | AA118: 775.432769 | AB118: 2347.332327 | AC118: 2346.324507 | AD118: 1172.658343 | AE118: 781.436289
D119: 8 | O119: 106.0531
D120: 9 | O120: 106.0531
D121: 10 | O121: 106.0531
D122: 11 | O122: 106.0531
D123: 12 | O123: 106.0531
D124: 13 | O124: 106.0531
D125: 14 | O125: 106.0531
C126: =IF(ISNUMBER(F126),C125+1,"") ->  | D126: 15 | O126: 106.0531 | P126: =IF(ISNUMBER(P20),P20+$O126,"") ->  | T126: =IF(ISNUMBER(T20),T20+$O126,"") ->  | X126: =IF(ISNUMBER(X20),X20+$O126,"") ->  | AB126: =IF(ISNUMBER(AB20),AB20+$O126,"") -> 
D127: 16 | O127: 106.0531
D128: 17 | O128: 106.0531 | U128: =IF(ISNUMBER($T128),($T128+U$5*$AI$2)/(-1*U$5),"") ->  | Y128: =IF(ISNUMBER($X128),($X128+Y$5*$AI$2)/(-1*Y$5),"") ->  | AC128: =IF(ISNUMBER($AB128),($AB128+AC$5*$AI$2)/(-1*AC$5),"") -> 
D129: 18 | O129: 106.0531
D130: 19 | O130: 106.0531
D131: 20 | O131: 106.0531
D132: 21 | O132: 106.0531
D133: 22 | O133: 106.0531
D134: 23 | O134: 106.0531
D135: 24 | O135: 106.0531
Q137: w | R137: 5'-p | U137: x | V137: 5'-p -H2O | Y137: y | Z137: 5'-OH | AC137: z | AD137: 5'-OH -H2O
C138: =IF(ISNUMBER(F138),1,"") -> 1 | D138: 1 | E138: =IF(ISNUMBER(MATCH(D138,INDIRECT($A$8&"!q$7:q$67"),0)),MATCH(D138,INDIRECT($A$8&"!q$7:q$67"),0),"") -> 7 | F138: =IF(ISNUMBER($E138),INDEX(INDIRECT($A$8&"!h$7:h$66"),$E138,1),"") -> 6 | G138: =IF(ISNUMBER($E138),INDEX(INDIRECT($A$8&"!i$7:i$66"),$E138,1),"") -> 7 : 7 | H138: =IF(ISNUMBER($E138),INDEX(INDIRECT($A$8&"!F$7:F$66"),$E138,1),"") -> Kp | I138: =IF(ISNUMBER($E138),INDEX(INDIRECT($A$8&"!k$7:k$66"),$E138,1),"") -> 377.247202 | J138: =IF(ISNUMBER($E138),INDEX(INDIRECT($A$8&"!l$7:l$66"),$E138,1),"") -> 359.231922 | K138: =IF(ISNUMBER($E138),INDEX(INDIRECT($A$8&"!m$7:m$66"),$E138,1),"") -> 377.073649 | L138: =IF(ISNUMBER($E138),INDEX(INDIRECT($A$8&"!n$7:n$66"),$E138,1),"") -> 359.0630843 | M138: =IF(ISNUMBER($E138),INDEX(INDIRECT($A$8&"!o$7:o$66"),$E138,1),"") -> 377.073649 | N138: =IF(ISNUMBER($E138),INDEX(INDIRECT($A$8&"!p$7:p$66"),$E138,1),"") -> 359.0630843 | O138: =$O$112 -> 106.0531 | P138: =IF(ISNUMBER(P32),P32+$O138,"") -> 563.093079 | Q138: =IF(ISNUMBER($P138),($P138+Q$5*$AI$2)/(-1*Q$5),"") -> 562.085259 | R138: 280.5387195 | S138: 186.689873 | T138: =IF(ISNUMBER(T32),T32+$O138,"") -> 545.082519 | U138: =IF(ISNUMBER($T138),($T138+U$5*$AI$2)/(-1*U$5),"") -> 544.074699 | V138: 271.5334395 | W138: 180.686353 | X138: =IF(ISNUMBER(X32),X32+$O138,"") -> 483.126749 | Y138: =IF(ISNUMBER($X138),($X138+Y$5*$AI$2)/(-1*Y$5),"") -> 482.118929 | Z138: 240.5555545 | AA138: 160.0344297 | AB138: =IF(ISNUMBER(AB32),AB32+$O138,"") -> 465.116189 | AC138: =IF(ISNUMBER($AB138),($AB138+AC$5*$AI$2)/(-1*AC$5),"") -> 464.108369 | AD138: 231.5502745 | AE138: 154.0309097
C139: =IF(ISNUMBER(F139),C138+1,"") -> 2 | D139: 2 | E139: 6 | F139: 5 | G139: 6 : 7 | H139: UKp | I139: 683.413204 | J139: 665.397924 | K139: 683.0989508 | L139: 665.0883862 | M139: 683.0989508 | N139: 665.0883862 | O139: 106.0531 | P139: 869.1183808 | Q139: 868.1105608 | R139: 433.5513704 | S139: 288.6983069 | T139: 851.1078208 | U139: 850.1000008 | V139: 424.5460904 | W139: 282.6947869 | X139: 789.1520508 | Y139: 788.1442308 | Z139: 393.5682054 | AA139: 262.0428636 | AB139: 771.1414908 | AC139: 770.1336708 | AD139: 384.5629254 | AE139: 256.0393436
C140: 3 | D140: 3 | E140: 5 | F140: 4 | G140: 5 : 7 | H140: AUKp | I140: 1012.619146 | J140: 994.603866 | K140: 1012.15147 | L140: 994.1409058 | M140: 1012.15147 | N140: 994.1409058 | O140: 106.0531 | P140: 1198.1709 | Q140: 1197.16308 | R140: 598.0776302 | S140: 398.3824802 | T140: 1180.16034 | U140: 1179.15252 | V140: 589.0723502 | W140: 392.3789602 | X140: 1118.20457 | Y140: 1117.19675 | Z140: 558.0944652 | AA140: 371.7270368 | AB140: 1100.19401 | AC140: 1099.18619 | AD140: 549.0891852 | AE140: 365.7235168
C141: 4 | D141: 4 | E141: 4 | F141: 3 | G141: 4 : 7 | H141: ◊AUKp | I141: 1376.821228 | J141: 1358.805948 | K141: 1376.182252 | L141: 1358.171687 | M141: 1376.182252 | N141: 1358.171687 | O141: 106.0531 | P141: 1562.201682 | Q141: 1561.193862 | R141: 780.0930208 | S141: 519.7260739 | T141: 1544.191122 | U141: 1543.183302 | V141: 771.0877408 | W141: 513.7225539 | X141: 1482.235352 | Y141: 1481.227532 | Z141: 740.1098558 | AA141: 493.0706305 | AB141: 1464.224792 | AC141: 1463.216972 | AD141: 731.1045758 | AE141: 487.0671105
C142: 5 | D142: 5 | E142: 3 | F142: 2 | G142: 3 : 7 | H142: Ç◊AUKp | I142: 1630.95573 | J142: 1612.94045 | K142: 1630.212639 | L142: 1612.202074 | M142: 1630.212639 | N142: 1612.202074 | O142: 106.0531 | P142: 1816.232069 | Q142: 1815.224249 | R142: 907.1082144 | S142: 604.4028696 | T142: 1798.221509 | U142: 1797.213689 | V142: 898.1029344 | W142: 598.3993496 | X142: 1736.265739 | Y142: 1735.257919 | Z142: 867.1250494 | AA142: 577.7474263 | AB142: 1718.255179 | AC142: 1717.247359 | AD142: 858.1197694 | AE142: 571.7439063
C143: 6 | D143: 6 | E143: 2 | F143: 1 | G143: 2 : 7 | H143: CÇ◊AUKp | I143: 1936.136972 | J143: 1918.121692 | K143: 1935.253925 | L143: 1917.24336 | M143: 1935.253925 | N143: 1917.24336 | O143: 106.0531 | P143: 2121.273355 | Q143: 2120.265535 | R143: 1059.628858 | S143: 706.0832984 | T143: 2103.262795 | U143: 2102.254975 | V143: 1050.623578 | W143: 700.0797784 | X143: 2041.307025 | Y143: 2040.299205 | Z143: 1019.645693 | AA143: 679.427855 | AB143: 2023.296465 | AC143: 2022.288645 | AD143: 1010.640413 | AE143: 673.424335
C144: 7 | D144: 7 | E144: 1 | F144: 0 | G144: 1 : 7 | H144: UCÇ◊AUKp | I144: 2242.302974 | J144: 2224.287694 | K144: 2241.279227 | L144: 2223.268662 | M144: 2241.279227 | N144: 2223.268662 | O144: 106.0531 | X144: 2347.332327 | Y144: 2346.324507 | Z144: 1172.658343 | AA144: 781.436289 | AB144: 2329.321767 | AC144: 2328.313947 | AD144: 1163.653063 | AE144: 775.432769
D145: 8 | O145: 106.0531
D146: 9 | O146: 106.0531
D147: 10 | O147: 106.0531
D148: 11 | O148: 106.0531
D149: 12 | O149: 106.0531
D150: 13 | O150: 106.0531
D151: 14 | O151: 106.0531
C152: =IF(ISNUMBER(F152),C151+1,"") ->  | D152: 15 | O152: 106.0531 | P152: =IF(ISNUMBER(P46),P46+$O152,"") ->  | T152: =IF(ISNUMBER(T46),T46+$O152,"") ->  | X152: =IF(ISNUMBER(X46),X46+$O152,"") ->  | AB152: =IF(ISNUMBER(AB46),AB46+$O152,"") -> 
D153: 16 | O153: 106.0531
D154: 17 | O154: 106.0531 | U154: =IF(ISNUMBER($T154),($T154+U$5*$AI$2)/(-1*U$5),"") ->  | Y154: =IF(ISNUMBER($X154),($X154+Y$5*$AI$2)/(-1*Y$5),"") ->  | AC154: =IF(ISNUMBER($AB154),($AB154+AC$5*$AI$2)/(-1*AC$5),"") -> 
D155: 18 | O155: 106.0531
D156: 19 | O156: 106.0531
D157: 20 | O157: 106.0531
D158: 21 | O158: 106.0531
D159: 22 | O159: 106.0531
D160: 23 | O160: 106.0531
D161: 24 | O161: 106.0531

Sheet 1left
A1: 1r | B1: 5' | C1: 3' | I1: ='1r'!G1 -> 0
B2: ='1r'!B1 -> なし | C2: ='1r'!B2 -> -p | I2: =UPPER(SUBSTITUTE('1r'!G2," ","")) -> UCÇ◊AUK
B3: =IF(B2="p-",1,0) -> 0 | C3: =IF(C2="-p",0,-1) -> 0 | BY3: ユーザー用塩基 | CS3: HPO3
O4: topの適当な予想値 | Q4: 順位 | R4: 小さい順 | S4: 同点 | T4: C | U4: U | V4: T | W4: A | X4: G | Y4: ^ | Z4: : | AA4: # | AB4: ° | AC4: ~ | AD4: ) | AE4: \ | AF4: J | AG4: B | AH4: = | AI4: / | AJ4: " | AK4: + | AL4: * | AM4: ` | AN4: ' | AO4: , | AP4: | | AQ4: { | AR4: [ | AS4: ] | AT4: > | AU4: ? | AV4: % | AW4: $ | AX4: ! | AY4: 1 | AZ4: 2 | BA4: 3 | BB4: 4 | BC4: 5 | BD4: 6 | BE4: 7 | BF4: 8 | BG4: 9 | BH4: D | BI4: E | BJ4: F | BK4: I | BL4: K | BM4: L | BN4: M | BO4: O | BP4: P | BQ4: Q | BR4: R | BS4: S | BT4: V | BU4: W | BV4: X | BW4: Y | BX4: Z | BY4: N | BZ4: } | CA4: & | CB4: @ | CC4: H | CD4: ( | CE4: À | CF4: Á | CG4: Â | CH4: Ã | CI4: Ä | CJ4: Å | CK4: Æ | CL4: ∝ | CM4: Ç | CN4: ◊ | CO4: Ò | CP4: Õ | CQ4: Ï | CR4: Ñ | CS4: -p | CT4: >p | CU4: H2O
H5: position | I5: position | J5: fragment | K5: ave | L5: ave>p | M5: mono | N5: mono>p | O5: top | P5: top>p | T5: 243.21662 | U5: 244.20138 | V5: 258.22796 | W5: 267.24132 | X5: 283.24072 | Y5: 479.335842 | Z5: 281.2679 | AA5: 297.2673 | AB5: 285.2533 | AC5: 315.27928 | AD5: 345.30526 | AE5: 272.25454 | AF5: 258.22796 | AG5: 257.2432 | AH5: 281.2679 | AI5: 281.2679 | AJ5: 281.2679 | AK5: 335.35834 | AL5: 381.44992 | AM5: 351.35774 | AN5: 257.2432 | AO5: 332.26344 | AP5: 325.32046 | AQ5: 287.26918 | AR5: 458.44628 | AS5: 258.22796 | AT5: 271.22672 | AU5: 257.2432 | AV5: 259.28222 | AW5: 347.34428 | AX5: 331.27868 | AY5: 316.26404 | AZ5: 260.26698 | BA5: 332.32964 | BB5: 260.26698 | BC5: 274.22736 | BD5: 412.3547 | BE5: 297.2673 | BF5: 571.53442 | BG5: 571.53442 | BH5: 246.21726 | BI5: 426.38128 | BJ5: 274.29356 | BK5: 268.22608 | BL5: 297.2673 | BM5: 297.2673 | BN5: 285.2533 | BO5: 282.25266 | BP5: 244.20138 | BQ5: 409.39382 | BR5: 311.29388 | BS5: 303.33478 | BT5: 318.23686 | BU5: 540.48062 | BV5: 345.30526 | BW5: 508.48182 | BX5: 258.22796 | BY5: =INDIRECT(A1&"!B12") -> 273.2426 | BZ5: 371.3889 | CA5: 301.2527 | CB5: 381.35896 | CC5: 397.42456 | CD5: 324.29264 | CE5: 335.31528 | CF5: 349.34186 | CG5: 295.29448 | CH5: 359.33184 | CI5: 273.2426 | CJ5: 287.26918 | CK5: 341.36292 | CL5: 260.20078 | CM5: 192.16988 | CN5: 302.23746 | CO5: 271.26978 | CP5: 258.22796 | CQ5: 394.33942 | CR5: 287.22612 | CS5: 79.979902 | CT5: 61.964622 | CU5: 18.01528
D6: 5' | E6: 3' | F6: fragment | H6: 0 | T6: 243.0855205 | U6: 244.0695361 | V6: 258.0851862 | W6: 267.0967539 | X6: 283.0916686 | Y6: 479.1053431 | Z6: 281.112404 | AA6: 297.1073186 | AB6: 285.0960852 | AC6: 315.1066499 | AD6: 345.1172146 | AE6: 272.1008363 | AF6: 258.0851862 | AG6: 257.1011706 | AH6: 281.112404 | AI6: 281.112404 | AJ6: 281.112404 | AK6: 335.1593542 | AL6: 381.147075 | AM6: 351.1542688 | AN6: 257.1011706 | AO6: 332.0855801 | AP6: 325.1386188 | AQ6: 287.1117353 | AR6: 458.1219825 | AS6: 258.0851862 | AT6: 271.0804352 | AU6: 257.1011706 | AV6: 259.0626767 | AW6: 347.0787207 | AX6: 331.1015645 | AY6: 316.0906655 | AZ6: 260.0466922 | BA6: 332.0678216 | BB6: 260.0466922 | BC6: 274.0801008 | BD6: 412.1342617 | BE6: 297.1073186 | BF6: 571.2125716 | BG6: 571.2125716 | BH6: 246.0851862 | BI6: 426.1499117 | BJ6: 274.0623423 | BK6: 268.0807695 | BL6: 297.1073186 | BM6: 297.1073186 | BN6: 285.0960852 | BO6: 282.0964196 | BP6: 244.0695361 | BQ6: 409.1597481 | BR6: 311.1229687 | BS6: 303.0888914 | BT6: 318.0699301 | BU6: 540.1816058 | BV6: 345.1172146 | BW6: 508.1917765 | BX6: 258.0851862 | BY6: =INDIRECT(A1&"!B13") -> 273.0960852 | BZ6: 371.1804836 | CA6: 301.0909999 | CB6: 381.0842 | CC6: 397.0613561 | CD6: 324.1182177 | CE6: 335.1229687 | CF6: 349.1386188 | CG6: 295.1280541 | CH6: 359.1328647 | CI6: 273.0960852 | CJ6: 287.1117353 | CK6: 341.1699189 | CL6: 260.0644508 | CM6: 192.0746215 | CN6: 302.0750154 | CO6: 271.1168207 | CP6: 258.0851862 | CQ6: 394.123697 | CR6: 287.0753498 | CS6: 79.96633039 | CT6: 61.9557657 | CU6: 18.01056469
B7: =$B$3 -> 0 | C7: =$C$3 -> 0 | D7: =IF($B$3=1,"p","") ->  | E7: =IF($C$3=0,"p","") -> p | F7: =D7&J7&E7 -> UCÇ◊AUKp | H7: 0 | I7: ="1 : "&(LEN($I$2)-H7) -> 1 : 7 | J7: =LEFT($I$2,LEN($I$2)-H7) -> UCÇ◊AUK | K7: =IF(LEN(J7)=0,"",SUMPRODUCT(T$5:CU$5,T7:CU7)) -> 2242.302974 | L7: =IF(C7=-1,"",K7-18.01528) -> 2224.287694 | M7: =IF(LEN(J7)=0,"",SUMPRODUCT(T$6:CU$6,T7:CU7)) -> 2241.279227 | N7: =IF(C7=-1,"",M7-18.0105646861) -> 2223.268662 | O7: =IF(LEN(J7)=0,"",M7+TRUNC(K7-M7-0.1)) -> 2241.279227 | P7: =IF(C7=-1,"",O7-18.0105646861) -> 2223.268662 | Q7: =IF(ISNUMBER(K7),R7+S7,"") -> 7 | R7: =IF(ISNUMBER(K7),COUNTIF(K$7:K$66,"<"&K7)+1,"") -> 7 | S7: =IF(ISNUMBER(K7),COUNTIF(K$7:K7,"="&K7)-1,"") -> 0 | T7: =LEN($J7)-LEN(SUBSTITUTE($J7,T$4,"")) -> 1 | U7: 2 | V7: 0 | W7: 1 | X7: 0 | Y7: 0 | Z7: 0 | AA7: 0 | AB7: 0 | AC7: 0 | AD7: =LEN($J7)-LEN(SUBSTITUTE($J7,AD$4,"")) -> 0 | AE7: 0 | AF7: 0 | AG7: 0 | AH7: 0 | AI7: 0 | AJ7: 0 | AK7: 0 | AL7: 0 | AM7: 0 | AN7: =LEN($J7)-LEN(SUBSTITUTE($J7,AN$4,"")) -> 0 | AO7: 0 | AP7: 0 | AQ7: 0 | AR7: 0 | AS7: 0 | AT7: 0 | AU7: 0 | AV7: 0 | AW7: 0 | AX7: =LEN($J7)-LEN(SUBSTITUTE($J7,AX$4,"")) -> 0 | AY7: 0 | AZ7: 0 | BA7: 0 | BB7: 0 | BC7: 0 | BD7: 0 | BE7: 0 | BF7: 0 | BG7: 0 | BH7: =LEN($J7)-LEN(SUBSTITUTE($J7,BH$4,"")) -> 0 | BI7: 0 | BJ7: 0 | BK7: 0 | BL7: 1 | BM7: 0 | BN7: 0 | BO7: 0 | BP7: 0 | BQ7: 0 | BR7: =LEN($J7)-LEN(SUBSTITUTE($J7,BR$4,"")) -> 0 | BS7: 0 | BT7: 0 | BU7: 0 | BV7: 0 | BW7: 0 | BX7: 0 | BY7: 0 | BZ7: 0 | CA7: 0 | CB7: 0 | CC7: 0 | CD7: 0 | CE7: 0 | CF7: 0 | CG7: 0 | CH7: =LEN($J7)-LEN(SUBSTITUTE($J7,CH$4,"")) -> 0 | CI7: 0 | CJ7: 0 | CK7: 0 | CL7: 0 | CM7: 1 | CN7: 1 | CO7: 0 | CP7: 0 | CQ7: 0 | CR7: =LEN($J7)-LEN(SUBSTITUTE($J7,CR$4,"")) -> 0 | CS7: =LEN(J7)+B7+C7 -> 7 | CU7: =-(LEN(J7)-1) -> -6
B8: =$B$3 -> 0 | C8: 0 | D8: =IF($B$3=1,"p","") ->  | E8: p | F8: =D8&J8&E8 -> UCÇ◊AUp | H8: 1 | I8: ="1 : "&(LEN($I$2)-H8) -> 1 : 6 | J8: =LEFT($I$2,LEN($I$2)-H8) -> UCÇ◊AU | K8: 1883.071052 | L8: =IF(C8=-1,"",K8-18.01528) -> 1865.055772 | M8: 1882.216143 | N8: =IF(C8=-1,"",M8-18.0105646861) -> 1864.205578 | O8: =IF(LEN(J8)=0,"",M8+TRUNC(K8-M8-0.1)) -> 1882.216143 | P8: =IF(C8=-1,"",O8-18.0105646861) -> 1864.205578 | Q8: =IF(ISNUMBER(K8),R8+S8,"") -> 6 | R8: =IF(ISNUMBER(K8),COUNTIF(K$7:K$66,"<"&K8)+1,"") -> 6 | S8: =IF(ISNUMBER(K8),COUNTIF(K$7:K8,"="&K8)-1,"") -> 0 | T8: 1 | U8: 2 | V8: 0 | W8: 1 | X8: 0 | Y8: 0 | Z8: 0 | AA8: 0 | AB8: 0 | AC8: 0 | AD8: 0 | AE8: 0 | AF8: 0 | AG8: 0 | AH8: 0 | AI8: 0 | AJ8: 0 | AK8: 0 | AL8: 0 | AM8: 0 | AN8: 0 | AO8: 0 | AP8: 0 | AQ8: 0 | AR8: 0 | AS8: 0 | AT8: 0 | AU8: 0 | AV8: 0 | AW8: 0 | AX8: 0 | AY8: 0 | AZ8: 0 | BA8: 0 | BB8: 0 | BC8: 0 | BD8: 0 | BE8: 0 | BF8: 0 | BG8: 0 | BH8: 0 | BI8: 0 | BJ8: 0 | BK8: 0 | BL8: 0 | BM8: 0 | BN8: 0 | BO8: 0 | BP8: 0 | BQ8: 0 | BR8: 0 | BS8: 0 | BT8: 0 | BU8: 0 | BV8: 0 | BW8: 0 | BX8: 0 | BY8: 0 | BZ8: 0 | CA8: 0 | CB8: 0 | CC8: 0 | CD8: 0 | CE8: 0 | CF8: 0 | CG8: 0 | CH8: 0 | CI8: 0 | CJ8: 0 | CK8: 0 | CL8: 0 | CM8: 1 | CN8: 1 | CO8: 0 | CP8: 0 | CQ8: 0 | CR8: 0 | CS8: 6 | CU8: -5
B9: 0 | C9: 0 | E9: p | F9: UCÇ◊Ap | H9: 2 | I9: 1 : 5 | J9: UCÇ◊A | K9: 1576.90505 | L9: 1558.88977 | M9: 1576.190841 | N9: 1558.180276 | O9: 1576.190841 | P9: 1558.180276 | Q9: 5 | R9: 5 | S9: =IF(ISNUMBER(K9),COUNTIF(K$7:K9,"="&K9)-1,"") -> 0 | T9: 1 | U9: 1 | V9: 0 | W9: 1 | X9: 0 | Y9: 0 | Z9: 0 | AA9: 0 | AB9: 0 | AC9: 0 | AD9: 0 | AE9: 0 | AF9: 0 | AG9: 0 | AH9: 0 | AI9: 0 | AJ9: 0 | AK9: 0 | AL9: 0 | AM9: 0 | AN9: 0 | AO9: 0 | AP9: 0 | AQ9: 0 | AR9: 0 | AS9: 0 | AT9: 0 | AU9: 0 | AV9: 0 | AW9: 0 | AX9: 0 | AY9: 0 | AZ9: 0 | BA9: 0 | BB9: 0 | BC9: 0 | BD9: 0 | BE9: 0 | BF9: 0 | BG9: 0 | BH9: 0 | BI9: 0 | BJ9: 0 | BK9: 0 | BL9: 0 | BM9: 0 | BN9: 0 | BO9: 0 | BP9: 0 | BQ9: 0 | BR9: 0 | BS9: 0 | BT9: 0 | BU9: 0 | BV9: 0 | BW9: 0 | BX9: 0 | BY9: 0 | BZ9: 0 | CA9: 0 | CB9: 0 | CC9: 0 | CD9: 0 | CE9: 0 | CF9: 0 | CG9: 0 | CH9: 0 | CI9: 0 | CJ9: 0 | CK9: 0 | CL9: 0 | CM9: 1 | CN9: 1 | CO9: 0 | CP9: 0 | CQ9: 0 | CR9: 0 | CS9: 5 | CU9: -4
B10: 0 | C10: 0 | E10: p | F10: UCÇ◊p | H10: 3 | I10: 1 : 4 | J10: UCÇ◊ | K10: 1247.699108 | L10: 1229.683828 | M10: 1247.138321 | N10: 1229.127756 | O10: 1247.138321 | P10: 1229.127756 | Q10: 4 | R10: 4 | S10: =IF(ISNUMBER(K10),COUNTIF(K$7:K10,"="&K10)-1,"") -> 0 | T10: 1 | U10: 1 | V10: 0 | W10: 0 | X10: 0 | Y10: 0 | Z10: 0 | AA10: 0 | AB10: 0 | AC10: 0 | AD10: 0 | AE10: 0 | AF10: 0 | AG10: 0 | AH10: 0 | AI10: 0 | AJ10: 0 | AK10: 0 | AL10: 0 | AM10: 0 | AN10: 0 | AO10: 0 | AP10: 0 | AQ10: 0 | AR10: 0 | AS10: 0 | AT10: 0 | AU10: 0 | AV10: 0 | AW10: 0 | AX10: 0 | AY10: 0 | AZ10: 0 | BA10: 0 | BB10: 0 | BC10: 0 | BD10: 0 | BE10: 0 | BF10: 0 | BG10: 0 | BH10: 0 | BI10: 0 | BJ10: 0 | BK10: 0 | BL10: 0 | BM10: 0 | BN10: 0 | BO10: 0 | BP10: 0 | BQ10: 0 | BR10: 0 | BS10: 0 | BT10: 0 | BU10: 0 | BV10: 0 | BW10: 0 | BX10: 0 | BY10: 0 | BZ10: 0 | CA10: 0 | CB10: 0 | CC10: 0 | CD10: 0 | CE10: 0 | CF10: 0 | CG10: 0 | CH10: 0 | CI10: 0 | CJ10: 0 | CK10: 0 | CL10: 0 | CM10: 1 | CN10: 1 | CO10: 0 | CP10: 0 | CQ10: 0 | CR10: 0 | CS10: 4 | CU10: -3
B11: 0 | C11: 0 | E11: p | F11: UCÇp | H11: 4 | I11: 1 : 3 | J11: UCÇ | K11: 883.497026 | L11: 865.481746 | M11: 883.10754 | N11: 865.0969753 | O11: 883.10754 | P11: 865.0969753 | Q11: 3 | R11: 3 | S11: =IF(ISNUMBER(K11),COUNTIF(K$7:K11,"="&K11)-1,"") -> 0 | T11: 1 | U11: 1 | V11: 0 | W11: 0 | X11: 0 | Y11: 0 | Z11: 0 | AA11: 0 | AB11: 0 | AC11: 0 | AD11: 0 | AE11: 0 | AF11: 0 | AG11: 0 | AH11: 0 | AI11: 0 | AJ11: 0 | AK11: 0 | AL11: 0 | AM11: 0 | AN11: 0 | AO11: 0 | AP11: 0 | AQ11: 0 | AR11: 0 | AS11: 0 | AT11: 0 | AU11: 0 | AV11: 0 | AW11: 0 | AX11: 0 | AY11: 0 | AZ11: 0 | BA11: 0 | BB11: 0 | BC11: 0 | BD11: 0 | BE11: 0 | BF11: 0 | BG11: 0 | BH11: 0 | BI11: 0 | BJ11: 0 | BK11: 0 | BL11: 0 | BM11: 0 | BN11: 0 | BO11: 0 | BP11: 0 | BQ11: 0 | BR11: 0 | BS11: 0 | BT11: 0 | BU11: 0 | BV11: 0 | BW11: 0 | BX11: 0 | BY11: 0 | BZ11: 0 | CA11: 0 | CB11: 0 | CC11: 0 | CD11: 0 | CE11: 0 | CF11: 0 | CG11: 0 | CH11: 0 | CI11: 0 | CJ11: 0 | CK11: 0 | CL11: 0 | CM11: 1 | CN11: 0 | CO11: 0 | CP11: 0 | CQ11: 0 | CR11: 0 | CS11: 3 | CU11: -2
B12: 0 | C12: 0 | E12: p | F12: UCp | H12: 5 | I12: 1 : 2 | J12: UC | K12: 629.362524 | L12: 611.347244 | M12: 629.0771528 | N12: 611.0665881 | O12: 629.0771528 | P12: 611.0665881 | Q12: 2 | R12: 2 | S12: =IF(ISNUMBER(K12),COUNTIF(K$7:K12,"="&K12)-1,"") -> 0 | T12: 1 | U12: 1 | V12: 0 | W12: 0 | X12: 0 | Y12: 0 | Z12: 0 | AA12: 0 | AB12: 0 | AC12: 0 | AD12: 0 | AE12: 0 | AF12: 0 | AG12: 0 | AH12: 0 | AI12: 0 | AJ12: 0 | AK12: 0 | AL12: 0 | AM12: 0 | AN12: 0 | AO12: 0 | AP12: 0 | AQ12: 0 | AR12: 0 | AS12: 0 | AT12: 0 | AU12: 0 | AV12: 0 | AW12: 0 | AX12: 0 | AY12: 0 | AZ12: 0 | BA12: 0 | BB12: 0 | BC12: 0 | BD12: 0 | BE12: 0 | BF12: 0 | BG12: 0 | BH12: 0 | BI12: 0 | BJ12: 0 | BK12: 0 | BL12: 0 | BM12: 0 | BN12: 0 | BO12: 0 | BP12: 0 | BQ12: 0 | BR12: 0 | BS12: 0 | BT12: 0 | BU12: 0 | BV12: 0 | BW12: 0 | BX12: 0 | BY12: 0 | BZ12: 0 | CA12: 0 | CB12: 0 | CC12: 0 | CD12: 0 | CE12: 0 | CF12: 0 | CG12: 0 | CH12: 0 | CI12: 0 | CJ12: 0 | CK12: 0 | CL12: 0 | CM12: 0 | CN12: 0 | CO12: 0 | CP12: 0 | CQ12: 0 | CR12: 0 | CS12: 2 | CU12: -1
B13: 0 | C13: 0 | E13: p | F13: Up | H13: 6 | I13: 1 : 1 | J13: U | K13: 324.181282 | L13: 306.166002 | M13: 324.0358665 | N13: 306.0253018 | O13: 324.0358665 | P13: 306.0253018 | Q13: 1 | R13: 1 | S13: =IF(ISNUMBER(K13),COUNTIF(K$7:K13,"="&K13)-1,"") -> 0 | T13: 0 | U13: 1 | V13: 0 | W13: 0 | X13: 0 | Y13: 0 | Z13: 0 | AA13: 0 | AB13: 0 | AC13: 0 | AD13: 0 | AE13: 0 | AF13: 0 | AG13: 0 | AH13: 0 | AI13: 0 | AJ13: 0 | AK13: 0 | AL13: 0 | AM13: 0 | AN13: 0 | AO13: 0 | AP13: 0 | AQ13: 0 | AR13: 0 | AS13: 0 | AT13: 0 | AU13: 0 | AV13: 0 | AW13: 0 | AX13: 0 | AY13: 0 | AZ13: 0 | BA13: 0 | BB13: 0 | BC13: 0 | BD13: 0 | BE13: 0 | BF13: 0 | BG13: 0 | BH13: 0 | BI13: 0 | BJ13: 0 | BK13: 0 | BL13: 0 | BM13: 0 | BN13: 0 | BO13: 0 | BP13: 0 | BQ13: 0 | BR13: 0 | BS13: 0 | BT13: 0 | BU13: 0 | BV13: 0 | BW13: 0 | BX13: 0 | BY13: 0 | BZ13: 0 | CA13: 0 | CB13: 0 | CC13: 0 | CD13: 0 | CE13: 0 | CF13: 0 | CG13: 0 | CH13: 0 | CI13: 0 | CJ13: 0 | CK13: 0 | CL13: 0 | CM13: 0 | CN13: 0 | CO13: 0 | CP13: 0 | CQ13: 0 | CR13: 0 | CS13: 1 | CU13: 0
B14: 0 | C14: 0 | E14: p | F14: p | H14: 7 | I14: 1 : 0 | S14: =IF(ISNUMBER(K14),COUNTIF(K$7:K14,"="&K14)-1,"") ->  | T14: 0 | U14: 0 | V14: 0 | W14: 0 | X14: 0 | Y14: 0 | Z14: 0 | AA14: 0 | AB14: 0 | AC14: 0 | AD14: 0 | AE14: 0 | AF14: 0 | AG14: 0 | AH14: 0 | AI14: 0 | AJ14: 0 | AK14: 0 | AL14: 0 | AM14: 0 | AN14: 0 | AO14: 0 | AP14: 0 | AQ14: 0 | AR14: 0 | AS14: 0 | AT14: 0 | AU14: 0 | AV14: 0 | AW14: 0 | AX14: 0 | AY14: 0 | AZ14: 0 | BA14: 0 | BB14: 0 | BC14: 0 | BD14: 0 | BE14: 0 | BF14: 0 | BG14: 0 | BH14: 0 | BI14: 0 | BJ14: 0 | BK14: 0 | BL14: 0 | BM14: 0 | BN14: 0 | BO14: 0 | BP14: 0 | BQ14: 0 | BR14: 0 | BS14: 0 | BT14: 0 | BU14: 0 | BV14: 0 | BW14: 0 | BX14: 0 | BY14: 0 | BZ14: 0 | CA14: 0 | CB14: 0 | CC14: 0 | CD14: 0 | CE14: 0 | CF14: 0 | CG14: 0 | CH14: 0 | CI14: 0 | CJ14: 0 | CK14: 0 | CL14: 0 | CM14: 0 | CN14: 0 | CO14: 0 | CP14: 0 | CQ14: 0 | CR14: 0 | CS14: 0 | CU14: 1
B15: 0 | C15: 0 | E15: p | H15: 8 | I15: 1 : -1 | S15: =IF(ISNUMBER(K15),COUNTIF(K$7:K15,"="&K15)-1,"") -> 
B16: 0 | C16: 0 | E16: p | H16: 9 | I16: 1 : -2 | S16: =IF(ISNUMBER(K16),COUNTIF(K$7:K16,"="&K16)-1,"") -> 
B17: 0 | C17: 0 | E17: p | H17: 10 | I17: 1 : -3 | S17: =IF(ISNUMBER(K17),COUNTIF(K$7:K17,"="&K17)-1,"") ->  | T17: =LEN($J17)-LEN(SUBSTITUTE($J17,T$4,"")) ->  | AD17: =LEN($J17)-LEN(SUBSTITUTE($J17,AD$4,"")) ->  | AN17: =LEN($J17)-LEN(SUBSTITUTE($J17,AN$4,"")) ->  | AX17: =LEN($J17)-LEN(SUBSTITUTE($J17,AX$4,"")) ->  | BH17: =LEN($J17)-LEN(SUBSTITUTE($J17,BH$4,"")) ->  | BR17: =LEN($J17)-LEN(SUBSTITUTE($J17,BR$4,"")) -> 
B18: 0 | C18: 0 | E18: p | H18: 11 | I18: 1 : -4 | S18: =IF(ISNUMBER(K18),COUNTIF(K$7:K18,"="&K18)-1,"") -> 
B19: 0 | C19: 0 | E19: p | H19: 12 | I19: 1 : -5 | S19: =IF(ISNUMBER(K19),COUNTIF(K$7:K19,"="&K19)-1,"") -> 
B20: 0 | C20: 0 | E20: p | H20: 13 | I20: 1 : -6 | S20: =IF(ISNUMBER(K20),COUNTIF(K$7:K20,"="&K20)-1,"") -> 
B21: 0 | C21: 0 | E21: p | H21: 14 | I21: 1 : -7 | S21: =IF(ISNUMBER(K21),COUNTIF(K$7:K21,"="&K21)-1,"") -> 
B22: 0 | C22: 0 | E22: p | H22: 15 | I22: 1 : -8 | S22: =IF(ISNUMBER(K22),COUNTIF(K$7:K22,"="&K22)-1,"") -> 
B23: 0 | C23: 0 | E23: p | H23: 16 | I23: 1 : -9 | S23: =IF(ISNUMBER(K23),COUNTIF(K$7:K23,"="&K23)-1,"") ->  | CB23: =LEN($J23)-LEN(SUBSTITUTE($J23,CB$4,"")) ->  | CR23: =LEN($J23)-LEN(SUBSTITUTE($J23,CR$4,"")) -> 
B24: 0 | C24: 0 | E24: p | H24: 17 | I24: 1 : -10 | S24: =IF(ISNUMBER(K24),COUNTIF(K$7:K24,"="&K24)-1,"") -> 
B25: 0 | C25: 0 | E25: p | H25: 18 | I25: 1 : -11 | S25: =IF(ISNUMBER(K25),COUNTIF(K$7:K25,"="&K25)-1,"") -> 
B26: 0 | C26: 0 | E26: p | H26: 19 | I26: 1 : -12 | S26: =IF(ISNUMBER(K26),COUNTIF(K$7:K26,"="&K26)-1,"") -> 
B27: 0 | C27: 0 | E27: p | H27: 20 | I27: 1 : -13 | S27: =IF(ISNUMBER(K27),COUNTIF(K$7:K27,"="&K27)-1,"") ->  | T27: =LEN($J27)-LEN(SUBSTITUTE($J27,T$4,"")) ->  | AD27: =LEN($J27)-LEN(SUBSTITUTE($J27,AD$4,"")) ->  | AN27: =LEN($J27)-LEN(SUBSTITUTE($J27,AN$4,"")) ->  | AX27: =LEN($J27)-LEN(SUBSTITUTE($J27,AX$4,"")) ->  | BH27: =LEN($J27)-LEN(SUBSTITUTE($J27,BH$4,"")) ->  | BR27: =LEN($J27)-LEN(SUBSTITUTE($J27,BR$4,"")) -> 
B28: 0 | C28: 0 | E28: p | H28: 21 | I28: 1 : -14 | S28: =IF(ISNUMBER(K28),COUNTIF(K$7:K28,"="&K28)-1,"") -> 
B29: 0 | C29: 0 | E29: p | H29: 22 | I29: 1 : -15 | S29: =IF(ISNUMBER(K29),COUNTIF(K$7:K29,"="&K29)-1,"") -> 
B30: 0 | C30: 0 | E30: p | H30: 23 | I30: 1 : -16 | S30: =IF(ISNUMBER(K30),COUNTIF(K$7:K30,"="&K30)-1,"") -> 
B31: 0 | C31: 0 | E31: p | H31: 24 | I31: 1 : -17 | S31: =IF(ISNUMBER(K31),COUNTIF(K$7:K31,"="&K31)-1,"") -> 
B32: 0 | C32: 0 | E32: p | H32: 25 | I32: 1 : -18 | S32: =IF(ISNUMBER(K32),COUNTIF(K$7:K32,"="&K32)-1,"") -> 
B33: 0 | C33: 0 | E33: p | H33: 26 | I33: 1 : -19 | S33: =IF(ISNUMBER(K33),COUNTIF(K$7:K33,"="&K33)-1,"") -> 
B34: 0 | C34: 0 | E34: p | H34: 27 | I34: 1 : -20 | S34: =IF(ISNUMBER(K34),COUNTIF(K$7:K34,"="&K34)-1,"") -> 
B35: 0 | C35: 0 | E35: p | H35: 28 | I35: 1 : -21 | S35: =IF(ISNUMBER(K35),COUNTIF(K$7:K35,"="&K35)-1,"") -> 
B36: 0 | C36: 0 | E36: p | H36: 29 | I36: 1 : -22 | S36: =IF(ISNUMBER(K36),COUNTIF(K$7:K36,"="&K36)-1,"") -> 
B37: 0 | C37: 0 | E37: p | H37: 30 | I37: 1 : -23 | S37: =IF(ISNUMBER(K37),COUNTIF(K$7:K37,"="&K37)-1,"") -> 
B38: 0 | C38: 0 | E38: p | H38: 31 | I38: 1 : -24 | S38: =IF(ISNUMBER(K38),COUNTIF(K$7:K38,"="&K38)-1,"") -> 
B39: 0 | C39: 0 | E39: p | H39: 32 | I39: 1 : -25 | K39: =IF(LEN(J39)=0,"",SUMPRODUCT(T$5:CU$5,T39:CU39)) ->  | M39: =IF(LEN(J39)=0,"",SUMPRODUCT(T$6:CU$6,T39:CU39)) ->  | S39: =IF(ISNUMBER(K39),COUNTIF(K$7:K39,"="&K39)-1,"") ->  | CB39: =LEN($J39)-LEN(SUBSTITUTE($J39,CB$4,"")) ->  | CR39: =LEN($J39)-LEN(SUBSTITUTE($J39,CR$4,"")) ->  | CS39: =LEN(J39)+B39+C39 -> 
B40: 0 | C40: 0 | E40: p | H40: 33 | I40: 1 : -26 | S40: =IF(ISNUMBER(K40),COUNTIF(K$7:K40,"="&K40)-1,"") -> 
B41: 0 | C41: 0 | E41: p | H41: 34 | I41: 1 : -27 | O41: =IF(LEN(J41)=0,"",M41+TRUNC(K41-M41-0.1)) ->  | Q41: =IF(ISNUMBER(K41),R41+S41,"") ->  | R41: =IF(ISNUMBER(K41),COUNTIF(K$7:K$66,"<"&K41)+1,"") ->  | S41: =IF(ISNUMBER(K41),COUNTIF(K$7:K41,"="&K41)-1,"") ->  | CU41: =-(LEN(J41)-1) -> 
B42: 0 | C42: 0 | E42: p | H42: 35 | I42: 1 : -28 | S42: =IF(ISNUMBER(K42),COUNTIF(K$7:K42,"="&K42)-1,"") -> 
B43: 0 | C43: 0 | E43: p | H43: 36 | I43: 1 : -29 | S43: =IF(ISNUMBER(K43),COUNTIF(K$7:K43,"="&K43)-1,"") ->  | T43: =LEN($J43)-LEN(SUBSTITUTE($J43,T$4,"")) ->  | AJ43: =LEN($J43)-LEN(SUBSTITUTE($J43,AJ$4,"")) ->  | AZ43: =LEN($J43)-LEN(SUBSTITUTE($J43,AZ$4,"")) ->  | BP43: =LEN($J43)-LEN(SUBSTITUTE($J43,BP$4,"")) -> 
B44: 0 | C44: 0 | E44: p | H44: 37 | I44: 1 : -30 | S44: =IF(ISNUMBER(K44),COUNTIF(K$7:K44,"="&K44)-1,"") -> 
B45: 0 | C45: 0 | E45: p | H45: 38 | I45: 1 : -31 | S45: =IF(ISNUMBER(K45),COUNTIF(K$7:K45,"="&K45)-1,"") -> 
B46: 0 | C46: 0 | E46: p | H46: 39 | I46: 1 : -32 | S46: =IF(ISNUMBER(K46),COUNTIF(K$7:K46,"="&K46)-1,"") -> 
B47: 0 | C47: 0 | E47: p | H47: 40 | I47: 1 : -33 | S47: =IF(ISNUMBER(K47),COUNTIF(K$7:K47,"="&K47)-1,"") -> 
B48: 0 | C48: 0 | E48: p | H48: 41 | I48: 1 : -34 | S48: =IF(ISNUMBER(K48),COUNTIF(K$7:K48,"="&K48)-1,"") -> 
B49: 0 | C49: 0 | E49: p | H49: 42 | I49: 1 : -35 | S49: =IF(ISNUMBER(K49),COUNTIF(K$7:K49,"="&K49)-1,"") -> 
B50: 0 | C50: 0 | E50: p | H50: 43 | I50: 1 : -36 | S50: =IF(ISNUMBER(K50),COUNTIF(K$7:K50,"="&K50)-1,"") -> 
B51: 0 | C51: 0 | E51: p | H51: 44 | I51: 1 : -37 | S51: =IF(ISNUMBER(K51),COUNTIF(K$7:K51,"="&K51)-1,"") -> 
B52: 0 | C52: 0 | E52: p | H52: 45 | I52: 1 : -38 | S52: =IF(ISNUMBER(K52),COUNTIF(K$7:K52,"="&K52)-1,"") -> 
B53: 0 | C53: 0 | E53: p | H53: 46 | I53: 1 : -39 | S53: =IF(ISNUMBER(K53),COUNTIF(K$7:K53,"="&K53)-1,"") -> 
B54: 0 | C54: 0 | E54: p | H54: 47 | I54: 1 : -40 | S54: =IF(ISNUMBER(K54),COUNTIF(K$7:K54,"="&K54)-1,"") -> 
B55: 0 | C55: 0 | E55: p | H55: 48 | I55: 1 : -41 | S55: =IF(ISNUMBER(K55),COUNTIF(K$7:K55,"="&K55)-1,"") ->  | CB55: =LEN($J55)-LEN(SUBSTITUTE($J55,CB$4,"")) ->  | CR55: =LEN($J55)-LEN(SUBSTITUTE($J55,CR$4,"")) -> 
B56: 0 | C56: 0 | E56: p | H56: 49 | I56: 1 : -42 | S56: =IF(ISNUMBER(K56),COUNTIF(K$7:K56,"="&K56)-1,"") -> 
B57: 0 | C57: 0 | E57: p | H57: 50 | I57: 1 : -43 | S57: =IF(ISNUMBER(K57),COUNTIF(K$7:K57,"="&K57)-1,"") -> 
B58: 0 | C58: 0 | E58: p | H58: 51 | I58: 1 : -44 | S58: =IF(ISNUMBER(K58),COUNTIF(K$7:K58,"="&K58)-1,"") ->  | AI58: =LEN($J58)-LEN(SUBSTITUTE($J58,AI$4,"")) ->  | BO58: =LEN($J58)-LEN(SUBSTITUTE($J58,BO$4,"")) -> 
B59: 0 | C59: 0 | E59: p | H59: 52 | I59: 1 : -45 | S59: =IF(ISNUMBER(K59),COUNTIF(K$7:K59,"="&K59)-1,"") ->  | T59: =LEN($J59)-LEN(SUBSTITUTE($J59,T$4,"")) ->  | AQ59: =LEN($J59)-LEN(SUBSTITUTE($J59,AQ$4,"")) ->  | BG59: =LEN($J59)-LEN(SUBSTITUTE($J59,BG$4,"")) -> 
B60: 0 | C60: 0 | E60: p | H60: 53 | I60: 1 : -46 | S60: =IF(ISNUMBER(K60),COUNTIF(K$7:K60,"="&K60)-1,"") ->  | AT60: =LEN($J60)-LEN(SUBSTITUTE($J60,AT$4,"")) -> 
B61: 0 | C61: 0 | E61: p | H61: 54 | I61: 1 : -47 | S61: =IF(ISNUMBER(K61),COUNTIF(K$7:K61,"="&K61)-1,"") -> 
B62: 0 | C62: 0 | E62: p | H62: 55 | I62: 1 : -48 | S62: =IF(ISNUMBER(K62),COUNTIF(K$7:K62,"="&K62)-1,"") -> 
B63: 0 | C63: 0 | E63: p | H63: 56 | I63: 1 : -49 | S63: =IF(ISNUMBER(K63),COUNTIF(K$7:K63,"="&K63)-1,"") -> 
B64: 0 | C64: 0 | E64: p | H64: 57 | I64: 1 : -50 | S64: =IF(ISNUMBER(K64),COUNTIF(K$7:K64,"="&K64)-1,"") -> 
B65: 0 | C65: 0 | E65: p | H65: 58 | I65: 1 : -51 | S65: =IF(ISNUMBER(K65),COUNTIF(K$7:K65,"="&K65)-1,"") ->  | BW65: =LEN($J65)-LEN(SUBSTITUTE($J65,BW$4,"")) -> 
B66: 0 | C66: 0 | E66: p | H66: 59 | I66: 1 : -52 | S66: =IF(ISNUMBER(K66),COUNTIF(K$7:K66,"="&K66)-1,"") -> 

Sheet 1right
A1: 1r | B1: 5' | C1: 3' | I1: ='1r'!G1 -> 0
B2: ='1r'!B1 -> なし | C2: ='1r'!B2 -> -p | I2: =UPPER(SUBSTITUTE('1r'!G2," ","")) -> UCÇ◊AUK
B3: =IF(B2="p-",1,0) -> 0 | C3: =IF(C2="-p",0,-1) -> 0 | BY3: ユーザー用塩基 | CS3: HPO3
O4: topの適当な予想値 | Q4: 順位 | R4: 小さい順 | S4: 同点 | T4: C | U4: U | V4: T | W4: A | X4: G | Y4: ^ | Z4: : | AA4: # | AB4: ° | AC4: ~ | AD4: ) | AE4: \ | AF4: J | AG4: B | AH4: = | AI4: / | AJ4: " | AK4: + | AL4: * | AM4: ` | AN4: ' | AO4: , | AP4: | | AQ4: { | AR4: [ | AS4: ] | AT4: > | AU4: ? | AV4: % | AW4: $ | AX4: ! | AY4: 1 | AZ4: 2 | BA4: 3 | BB4: 4 | BC4: 5 | BD4: 6 | BE4: 7 | BF4: 8 | BG4: 9 | BH4: D | BI4: E | BJ4: F | BK4: I | BL4: K | BM4: L | BN4: M | BO4: O | BP4: P | BQ4: Q | BR4: R | BS4: S | BT4: V | BU4: W | BV4: X | BW4: Y | BX4: Z | BY4: N | BZ4: } | CA4: & | CB4: @ | CC4: H | CD4: ( | CE4: À | CF4: Á | CG4: Â | CH4: Ã | CI4: Ä | CJ4: Å | CK4: Æ | CL4: ∝ | CM4: Ç | CN4: ◊ | CO4: Ò | CP4: Õ | CQ4: Ï | CR4: Ñ | CS4: -p | CT4: >p | CU4: H2O
H5: position | I5: position | J5: fragment | K5: ave | L5: ave>p | M5: mono | N5: mono>p | O5: top | P5: top>p | T5: 243.21662 | U5: 244.20138 | V5: 258.22796 | W5: 267.24132 | X5: 283.24072 | Y5: 479.335842 | Z5: 281.2679 | AA5: 297.2673 | AB5: 285.2533 | AC5: 315.27928 | AD5: 345.30526 | AE5: 272.25454 | AF5: 258.22796 | AG5: 257.2432 | AH5: 281.2679 | AI5: 281.2679 | AJ5: 281.2679 | AK5: 335.35834 | AL5: 381.44992 | AM5: 351.35774 | AN5: 257.2432 | AO5: 332.26344 | AP5: 325.32046 | AQ5: 287.26918 | AR5: 458.44628 | AS5: 258.22796 | AT5: 271.22672 | AU5: 257.2432 | AV5: 259.28222 | AW5: 347.34428 | AX5: 331.27868 | AY5: 316.26404 | AZ5: 260.26698 | BA5: 332.32964 | BB5: 260.26698 | BC5: 274.22736 | BD5: 412.3547 | BE5: 297.2673 | BF5: 571.53442 | BG5: 571.53442 | BH5: 246.21726 | BI5: 426.38128 | BJ5: 274.29356 | BK5: 268.22608 | BL5: 297.2673 | BM5: 297.2673 | BN5: 285.2533 | BO5: 282.25266 | BP5: 244.20138 | BQ5: 409.39382 | BR5: 311.29388 | BS5: 303.33478 | BT5: 318.23686 | BU5: 540.48062 | BV5: 345.30526 | BW5: 508.48182 | BX5: 258.22796 | BY5: =INDIRECT(A1&"!B12") -> 273.2426 | BZ5: 371.3889 | CA5: 301.2527 | CB5: 381.35896 | CC5: 397.42456 | CD5: 324.29264 | CE5: 335.31528 | CF5: 349.34186 | CG5: 295.29448 | CH5: 359.33184 | CI5: 273.2426 | CJ5: 287.26918 | CK5: 341.36292 | CL5: 260.20078 | CM5: 192.16988 | CN5: 302.23746 | CO5: 271.26978 | CP5: 258.22796 | CQ5: 394.33942 | CR5: 287.22612 | CS5: 79.979902 | CT5: 61.964622 | CU5: 18.01528
D6: 5' | E6: 3' | F6: fragment | H6: 0 | T6: 243.0855205 | U6: 244.0695361 | V6: 258.0851862 | W6: 267.0967539 | X6: 283.0916686 | Y6: 479.1053431 | Z6: 281.112404 | AA6: 297.1073186 | AB6: 285.0960852 | AC6: 315.1066499 | AD6: 345.1172146 | AE6: 272.1008363 | AF6: 258.0851862 | AG6: 257.1011706 | AH6: 281.112404 | AI6: 281.112404 | AJ6: 281.112404 | AK6: 335.1593542 | AL6: 381.147075 | AM6: 351.1542688 | AN6: 257.1011706 | AO6: 332.0855801 | AP6: 325.1386188 | AQ6: 287.1117353 | AR6: 458.1219825 | AS6: 258.0851862 | AT6: 271.0804352 | AU6: 257.1011706 | AV6: 259.0626767 | AW6: 347.0787207 | AX6: 331.1015645 | AY6: 316.0906655 | AZ6: 260.0466922 | BA6: 332.0678216 | BB6: 260.0466922 | BC6: 274.0801008 | BD6: 412.1342617 | BE6: 297.1073186 | BF6: 571.2125716 | BG6: 571.2125716 | BH6: 246.0851862 | BI6: 426.1499117 | BJ6: 274.0623423 | BK6: 268.0807695 | BL6: 297.1073186 | BM6: 297.1073186 | BN6: 285.0960852 | BO6: 282.0964196 | BP6: 244.0695361 | BQ6: 409.1597481 | BR6: 311.1229687 | BS6: 303.0888914 | BT6: 318.0699301 | BU6: 540.1816058 | BV6: 345.1172146 | BW6: 508.1917765 | BX6: 258.0851862 | BY6: =INDIRECT(A1&"!B13") -> 273.0960852 | BZ6: 371.1804836 | CA6: 301.0909999 | CB6: 381.0842 | CC6: 397.0613561 | CD6: 324.1182177 | CE6: 335.1229687 | CF6: 349.1386188 | CG6: 295.1280541 | CH6: 359.1328647 | CI6: 273.0960852 | CJ6: 287.1117353 | CK6: 341.1699189 | CL6: 260.0644508 | CM6: 192.0746215 | CN6: 302.0750154 | CO6: 271.1168207 | CP6: 258.0851862 | CQ6: 394.123697 | CR6: 287.0753498 | CS6: 79.96633039 | CT6: 61.9557657 | CU6: 18.01056469
B7: =$B$3 -> 0 | C7: =$C$3 -> 0 | D7: =IF($B$3=1,"p","") ->  | E7: =IF($C$3=0,"p","") -> p | F7: =D7&J7&E7 -> UCÇ◊AUKp | H7: 0 | I7: =(H7+1&" : "&(LEN($I$2))) -> 1 : 7 | J7: =RIGHT($I$2,LEN($I$2)-H7) -> UCÇ◊AUK | K7: =IF(LEN(J7)=0,"",SUMPRODUCT(T$5:CU$5,T7:CU7)) -> 2242.302974 | L7: =IF(C7=-1,"",K7-18.01528) -> 2224.287694 | M7: =IF(LEN(J7)=0,"",SUMPRODUCT(T$6:CU$6,T7:CU7)) -> 2241.279227 | N7: =IF(C7=-1,"",M7-18.0105646861) -> 2223.268662 | O7: =IF(LEN(J7)=0,"",M7+TRUNC(K7-M7-0.1)) -> 2241.279227 | P7: =IF(C7=-1,"",O7-18.0105646861) -> 2223.268662 | Q7: =IF(ISNUMBER(K7),R7+S7,"") -> 7 | R7: =IF(ISNUMBER(K7),COUNTIF(K$7:K$66,"<"&K7)+1,"") -> 7 | S7: =IF(ISNUMBER(K7),COUNTIF(K$7:K7,"="&K7)-1,"") -> 0 | T7: =LEN($J7)-LEN(SUBSTITUTE($J7,T$4,"")) -> 1 | U7: 2 | V7: 0 | W7: 1 | X7: 0 | Y7: 0 | Z7: 0 | AA7: 0 | AB7: 0 | AC7: 0 | AD7: =LEN($J7)-LEN(SUBSTITUTE($J7,AD$4,"")) -> 0 | AE7: 0 | AF7: 0 | AG7: 0 | AH7: 0 | AI7: 0 | AJ7: 0 | AK7: 0 | AL7: 0 | AM7: 0 | AN7: =LEN($J7)-LEN(SUBSTITUTE($J7,AN$4,"")) -> 0 | AO7: 0 | AP7: 0 | AQ7: 0 | AR7: 0 | AS7: 0 | AT7: 0 | AU7: 0 | AV7: 0 | AW7: 0 | AX7: =LEN($J7)-LEN(SUBSTITUTE($J7,AX$4,"")) -> 0 | AY7: 0 | AZ7: 0 | BA7: 0 | BB7: 0 | BC7: 0 | BD7: 0 | BE7: 0 | BF7: 0 | BG7: 0 | BH7: =LEN($J7)-LEN(SUBSTITUTE($J7,BH$4,"")) -> 0 | BI7: 0 | BJ7: 0 | BK7: 0 | BL7: 1 | BM7: 0 | BN7: 0 | BO7: 0 | BP7: 0 | BQ7: 0 | BR7: =LEN($J7)-LEN(SUBSTITUTE($J7,BR$4,"")) -> 0 | BS7: 0 | BT7: 0 | BU7: 0 | BV7: 0 | BW7: 0 | BX7: 0 | BY7: 0 | BZ7: 0 | CA7: 0 | CB7: 0 | CC7: 0 | CD7: 0 | CE7: 0 | CF7: 0 | CG7: 0 | CH7: =LEN($J7)-LEN(SUBSTITUTE($J7,CH$4,"")) -> 0 | CI7: 0 | CJ7: 0 | CK7: 0 | CL7: 0 | CM7: 1 | CN7: 1 | CO7: 0 | CP7: 0 | CQ7: 0 | CR7: =LEN($J7)-LEN(SUBSTITUTE($J7,CR$4,"")) -> 0 | CS7: =LEN(J7)+B7+C7 -> 7 | CU7: =-(LEN(J7)-1) -> -6
C8: =$C$3 -> 0 | E8: =IF($C$3=0,"p","") -> p | F8: =D8&J8&E8 -> CÇ◊AUKp | H8: 1 | I8: =(H8+1&" : "&(LEN($I$2))) -> 2 : 7 | J8: =RIGHT($I$2,LEN($I$2)-H8) -> CÇ◊AUK | K8: 1936.136972 | L8: =IF(C8=-1,"",K8-18.01528) -> 1918.121692 | M8: 1935.253925 | N8: =IF(C8=-1,"",M8-18.0105646861) -> 1917.24336 | O8: 1935.253925 | P8: =IF(C8=-1,"",O8-18.0105646861) -> 1917.24336 | Q8: 6 | R8: 6 | S8: =IF(ISNUMBER(K8),COUNTIF(K$7:K8,"="&K8)-1,"") -> 0 | T8: 1 | U8: 1 | V8: 0 | W8: 1 | X8: 0 | Y8: 0 | Z8: 0 | AA8: 0 | AB8: 0 | AC8: 0 | AD8: 0 | AE8: 0 | AF8: 0 | AG8: 0 | AH8: 0 | AI8: 0 | AJ8: 0 | AK8: 0 | AL8: 0 | AM8: 0 | AN8: 0 | AO8: 0 | AP8: 0 | AQ8: 0 | AR8: 0 | AS8: 0 | AT8: 0 | AU8: 0 | AV8: 0 | AW8: 0 | AX8: 0 | AY8: 0 | AZ8: 0 | BA8: 0 | BB8: 0 | BC8: 0 | BD8: 0 | BE8: 0 | BF8: 0 | BG8: 0 | BH8: 0 | BI8: 0 | BJ8: 0 | BK8: 0 | BL8: 1 | BM8: 0 | BN8: 0 | BO8: 0 | BP8: 0 | BQ8: 0 | BR8: 0 | BS8: 0 | BT8: 0 | BU8: 0 | BV8: 0 | BW8: 0 | BX8: 0 | BY8: 0 | BZ8: 0 | CA8: 0 | CB8: 0 | CC8: 0 | CD8: 0 | CE8: 0 | CF8: 0 | CG8: 0 | CH8: 0 | CI8: 0 | CJ8: 0 | CK8: 0 | CL8: 0 | CM8: 1 | CN8: 1 | CO8: 0 | CP8: 0 | CQ8: 0 | CR8: 0 | CS8: 6 | CU8: -5
C9: 0 | E9: p | F9: Ç◊AUKp | H9: 2 | I9: 3 : 7 | J9: Ç◊AUK | K9: 1630.95573 | L9: 1612.94045 | M9: 1630.212639 | N9: 1612.202074 | O9: 1630.212639 | P9: 1612.202074 | Q9: 5 | R9: 5 | S9: =IF(ISNUMBER(K9),COUNTIF(K$7:K9,"="&K9)-1,"") -> 0 | T9: 0 | U9: 1 | V9: 0 | W9: 1 | X9: 0 | Y9: 0 | Z9: 0 | AA9: 0 | AB9: 0 | AC9: 0 | AD9: 0 | AE9: 0 | AF9: 0 | AG9: 0 | AH9: 0 | AI9: 0 | AJ9: 0 | AK9: 0 | AL9: 0 | AM9: 0 | AN9: 0 | AO9: 0 | AP9: 0 | AQ9: 0 | AR9: 0 | AS9: 0 | AT9: 0 | AU9: 0 | AV9: 0 | AW9: 0 | AX9: 0 | AY9: 0 | AZ9: 0 | BA9: 0 | BB9: 0 | BC9: 0 | BD9: 0 | BE9: 0 | BF9: 0 | BG9: 0 | BH9: 0 | BI9: 0 | BJ9: 0 | BK9: 0 | BL9: 1 | BM9: 0 | BN9: 0 | BO9: 0 | BP9: 0 | BQ9: 0 | BR9: 0 | BS9: 0 | BT9: 0 | BU9: 0 | BV9: 0 | BW9: 0 | BX9: 0 | BY9: 0 | BZ9: 0 | CA9: 0 | CB9: 0 | CC9: 0 | CD9: 0 | CE9: 0 | CF9: 0 | CG9: 0 | CH9: 0 | CI9: 0 | CJ9: 0 | CK9: 0 | CL9: 0 | CM9: 1 | CN9: 1 | CO9: 0 | CP9: 0 | CQ9: 0 | CR9: 0 | CS9: 5 | CU9: -4
C10: 0 | E10: p | F10: ◊AUKp | H10: 3 | I10: 4 : 7 | J10: ◊AUK | K10: 1376.821228 | L10: 1358.805948 | M10: 1376.182252 | N10: 1358.171687 | O10: 1376.182252 | P10: 1358.171687 | Q10: 4 | R10: 4 | S10: =IF(ISNUMBER(K10),COUNTIF(K$7:K10,"="&K10)-1,"") -> 0 | T10: 0 | U10: 1 | V10: 0 | W10: 1 | X10: 0 | Y10: 0 | Z10: 0 | AA10: 0 | AB10: 0 | AC10: 0 | AD10: 0 | AE10: 0 | AF10: 0 | AG10: 0 | AH10: 0 | AI10: 0 | AJ10: 0 | AK10: 0 | AL10: 0 | AM10: 0 | AN10: 0 | AO10: 0 | AP10: 0 | AQ10: 0 | AR10: 0 | AS10: 0 | AT10: 0 | AU10: 0 | AV10: 0 | AW10: 0 | AX10: 0 | AY10: 0 | AZ10: 0 | BA10: 0 | BB10: 0 | BC10: 0 | BD10: 0 | BE10: 0 | BF10: 0 | BG10: 0 | BH10: 0 | BI10: 0 | BJ10: 0 | BK10: 0 | BL10: 1 | BM10: 0 | BN10: 0 | BO10: 0 | BP10: 0 | BQ10: 0 | BR10: 0 | BS10: 0 | BT10: 0 | BU10: 0 | BV10: 0 | BW10: 0 | BX10: 0 | BY10: 0 | BZ10: 0 | CA10: 0 | CB10: 0 | CC10: 0 | CD10: 0 | CE10: 0 | CF10: 0 | CG10: 0 | CH10: 0 | CI10: 0 | CJ10: 0 | CK10: 0 | CL10: 0 | CM10: 0 | CN10: 1 | CO10: 0 | CP10: 0 | CQ10: 0 | CR10: 0 | CS10: 4 | CU10: -3
C11: 0 | E11: p | F11: AUKp | H11: 4 | I11: 5 : 7 | J11: AUK | K11: 1012.619146 | L11: 994.603866 | M11: 1012.15147 | N11: 994.1409058 | O11: 1012.15147 | P11: 994.1409058 | Q11: 3 | R11: 3 | S11: =IF(ISNUMBER(K11),COUNTIF(K$7:K11,"="&K11)-1,"") -> 0 | T11: 0 | U11: 1 | V11: 0 | W11: 1 | X11: 0 | Y11: 0 | Z11: 0 | AA11: 0 | AB11: 0 | AC11: 0 | AD11: 0 | AE11: 0 | AF11: 0 | AG11: 0 | AH11: 0 | AI11: 0 | AJ11: 0 | AK11: 0 | AL11: 0 | AM11: 0 | AN11: 0 | AO11: 0 | AP11: 0 | AQ11: 0 | AR11: 0 | AS11: 0 | AT11: 0 | AU11: 0 | AV11: 0 | AW11: 0 | AX11: 0 | AY11: 0 | AZ11: 0 | BA11: 0 | BB11: 0 | BC11: 0 | BD11: 0 | BE11: 0 | BF11: 0 | BG11: 0 | BH11: 0 | BI11: 0 | BJ11: 0 | BK11: 0 | BL11: 1 | BM11: 0 | BN11: 0 | BO11: 0 | BP11: 0 | BQ11: 0 | BR11: 0 | BS11: 0 | BT11: 0 | BU11: 0 | BV11: 0 | BW11: 0 | BX11: 0 | BY11: 0 | BZ11: 0 | CA11: 0 | CB11: 0 | CC11: 0 | CD11: 0 | CE11: 0 | CF11: 0 | CG11: 0 | CH11: 0 | CI11: 0 | CJ11: 0 | CK11: 0 | CL11: 0 | CM11: 0 | CN11: 0 | CO11: 0 | CP11: 0 | CQ11: 0 | CR11: 0 | CS11: 3 | CU11: -2
C12: 0 | E12: p | F12: UKp | H12: 5 | I12: 6 : 7 | J12: UK | K12: 683.413204 | L12: 665.397924 | M12: 683.0989508 | N12: 665.0883862 | O12: 683.0989508 | P12: 665.0883862 | Q12: 2 | R12: 2 | S12: =IF(ISNUMBER(K12),COUNTIF(K$7:K12,"="&K12)-1,"") -> 0 | T12: 0 | U12: 1 | V12: 0 | W12: 0 | X12: 0 | Y12: 0 | Z12: 0 | AA12: 0 | AB12: 0 | AC12: 0 | AD12: 0 | AE12: 0 | AF12: 0 | AG12: 0 | AH12: 0 | AI12: 0 | AJ12: 0 | AK12: 0 | AL12: 0 | AM12: 0 | AN12: 0 | AO12: 0 | AP12: 0 | AQ12: 0 | AR12: 0 | AS12: 0 | AT12: 0 | AU12: 0 | AV12: 0 | AW12: 0 | AX12: 0 | AY12: 0 | AZ12: 0 | BA12: 0 | BB12: 0 | BC12: 0 | BD12: 0 | BE12: 0 | BF12: 0 | BG12: 0 | BH12: 0 | BI12: 0 | BJ12: 0 | BK12: 0 | BL12: 1 | BM12: 0 | BN12: 0 | BO12: 0 | BP12: 0 | BQ12: 0 | BR12: 0 | BS12: 0 | BT12: 0 | BU12: 0 | BV12: 0 | BW12: 0 | BX12: 0 | BY12: 0 | BZ12: 0 | CA12: 0 | CB12: 0 | CC12: 0 | CD12: 0 | CE12: 0 | CF12: 0 | CG12: 0 | CH12: 0 | CI12: 0 | CJ12: 0 | CK12: 0 | CL12: 0 | CM12: 0 | CN12: 0 | CO12: 0 | CP12: 0 | CQ12: 0 | CR12: 0 | CS12: 2 | CU12: -1
C13: 0 | E13: p | F13: Kp | H13: 6 | I13: 7 : 7 | J13: K | K13: 377.247202 | L13: 359.231922 | M13: 377.073649 | N13: 359.0630843 | O13: 377.073649 | P13: 359.0630843 | Q13: 1 | R13: 1 | S13: =IF(ISNUMBER(K13),COUNTIF(K$7:K13,"="&K13)-1,"") -> 0 | T13: 0 | U13: 0 | V13: 0 | W13: 0 | X13: 0 | Y13: 0 | Z13: 0 | AA13: 0 | AB13: 0 | AC13: 0 | AD13: 0 | AE13: 0 | AF13: 0 | AG13: 0 | AH13: 0 | AI13: 0 | AJ13: 0 | AK13: 0 | AL13: 0 | AM13: 0 | AN13: 0 | AO13: 0 | AP13: 0 | AQ13: 0 | AR13: 0 | AS13: 0 | AT13: 0 | AU13: 0 | AV13: 0 | AW13: 0 | AX13: 0 | AY13: 0 | AZ13: 0 | BA13: 0 | BB13: 0 | BC13: 0 | BD13: 0 | BE13: 0 | BF13: 0 | BG13: 0 | BH13: 0 | BI13: 0 | BJ13: 0 | BK13: 0 | BL13: 1 | BM13: 0 | BN13: 0 | BO13: 0 | BP13: 0 | BQ13: 0 | BR13: 0 | BS13: 0 | BT13: 0 | BU13: 0 | BV13: 0 | BW13: 0 | BX13: 0 | BY13: 0 | BZ13: 0 | CA13: 0 | CB13: 0 | CC13: 0 | CD13: 0 | CE13: 0 | CF13: 0 | CG13: 0 | CH13: 0 | CI13: 0 | CJ13: 0 | CK13: 0 | CL13: 0 | CM13: 0 | CN13: 0 | CO13: 0 | CP13: 0 | CQ13: 0 | CR13: 0 | CS13: 1 | CU13: 0
C14: 0 | E14: p | F14: p | H14: 7 | I14: 8 : 7 | S14: =IF(ISNUMBER(K14),COUNTIF(K$7:K14,"="&K14)-1,"") ->  | T14: 0 | U14: 0 | V14: 0 | W14: 0 | X14: 0 | Y14: 0 | Z14: 0 | AA14: 0 | AB14: 0 | AC14: 0 | AD14: 0 | AE14: 0 | AF14: 0 | AG14: 0 | AH14: 0 | AI14: 0 | AJ14: 0 | AK14: 0 | AL14: 0 | AM14: 0 | AN14: 0 | AO14: 0 | AP14: 0 | AQ14: 0 | AR14: 0 | AS14: 0 | AT14: 0 | AU14: 0 | AV14: 0 | AW14: 0 | AX14: 0 | AY14: 0 | AZ14: 0 | BA14: 0 | BB14: 0 | BC14: 0 | BD14: 0 | BE14: 0 | BF14: 0 | BG14: 0 | BH14: 0 | BI14: 0 | BJ14: 0 | BK14: 0 | BL14: 0 | BM14: 0 | BN14: 0 | BO14: 0 | BP14: 0 | BQ14: 0 | BR14: 0 | BS14: 0 | BT14: 0 | BU14: 0 | BV14: 0 | BW14: 0 | BX14: 0 | BY14: 0 | BZ14: 0 | CA14: 0 | CB14: 0 | CC14: 0 | CD14: 0 | CE14: 0 | CF14: 0 | CG14: 0 | CH14: 0 | CI14: 0 | CJ14: 0 | CK14: 0 | CL14: 0 | CM14: 0 | CN14: 0 | CO14: 0 | CP14: 0 | CQ14: 0 | CR14: 0 | CS14: 0 | CU14: 1
C15: 0 | E15: p | H15: 8 | I15: 9 : 7 | S15: =IF(ISNUMBER(K15),COUNTIF(K$7:K15,"="&K15)-1,"") -> 
C16: 0 | E16: p | H16: 9 | I16: 10 : 7 | S16: =IF(ISNUMBER(K16),COUNTIF(K$7:K16,"="&K16)-1,"") -> 
C17: 0 | E17: p | H17: 10 | I17: 11 : 7 | S17: =IF(ISNUMBER(K17),COUNTIF(K$7:K17,"="&K17)-1,"") ->  | T17: =LEN($J17)-LEN(SUBSTITUTE($J17,T$4,"")) ->  | AD17: =LEN($J17)-LEN(SUBSTITUTE($J17,AD$4,"")) ->  | AN17: =LEN($J17)-LEN(SUBSTITUTE($J17,AN$4,"")) ->  | AX17: =LEN($J17)-LEN(SUBSTITUTE($J17,AX$4,"")) ->  | BH17: =LEN($J17)-LEN(SUBSTITUTE($J17,BH$4,"")) ->  | BR17: =LEN($J17)-LEN(SUBSTITUTE($J17,BR$4,"")) -> 
C18: 0 | E18: p | H18: 11 | I18: 12 : 7 | S18: =IF(ISNUMBER(K18),COUNTIF(K$7:K18,"="&K18)-1,"") -> 
C19: 0 | E19: p | H19: 12 | I19: 13 : 7 | S19: =IF(ISNUMBER(K19),COUNTIF(K$7:K19,"="&K19)-1,"") -> 
C20: 0 | E20: p | H20: 13 | I20: 14 : 7 | S20: =IF(ISNUMBER(K20),COUNTIF(K$7:K20,"="&K20)-1,"") -> 
C21: 0 | E21: p | H21: 14 | I21: 15 : 7 | S21: =IF(ISNUMBER(K21),COUNTIF(K$7:K21,"="&K21)-1,"") -> 
C22: 0 | E22: p | H22: 15 | I22: 16 : 7 | S22: =IF(ISNUMBER(K22),COUNTIF(K$7:K22,"="&K22)-1,"") -> 
C23: 0 | E23: p | H23: 16 | I23: 17 : 7 | S23: =IF(ISNUMBER(K23),COUNTIF(K$7:K23,"="&K23)-1,"") ->  | CB23: =LEN($J23)-LEN(SUBSTITUTE($J23,CB$4,"")) ->  | CR23: =LEN($J23)-LEN(SUBSTITUTE($J23,CR$4,"")) -> 
C24: 0 | E24: p | H24: 17 | I24: 18 : 7 | S24: =IF(ISNUMBER(K24),COUNTIF(K$7:K24,"="&K24)-1,"") -> 
C25: 0 | E25: p | H25: 18 | I25: 19 : 7 | S25: =IF(ISNUMBER(K25),COUNTIF(K$7:K25,"="&K25)-1,"") -> 
C26: 0 | E26: p | H26: 19 | I26: 20 : 7 | S26: =IF(ISNUMBER(K26),COUNTIF(K$7:K26,"="&K26)-1,"") -> 
C27: 0 | E27: p | H27: 20 | I27: 21 : 7 | S27: =IF(ISNUMBER(K27),COUNTIF(K$7:K27,"="&K27)-1,"") ->  | T27: =LEN($J27)-LEN(SUBSTITUTE($J27,T$4,"")) ->  | AD27: =LEN($J27)-LEN(SUBSTITUTE($J27,AD$4,"")) ->  | AN27: =LEN($J27)-LEN(SUBSTITUTE($J27,AN$4,"")) ->  | AX27: =LEN($J27)-LEN(SUBSTITUTE($J27,AX$4,"")) ->  | BH27: =LEN($J27)-LEN(SUBSTITUTE($J27,BH$4,"")) ->  | BR27: =LEN($J27)-LEN(SUBSTITUTE($J27,BR$4,"")) -> 
C28: 0 | E28: p | H28: 21 | I28: 22 : 7 | S28: =IF(ISNUMBER(K28),COUNTIF(K$7:K28,"="&K28)-1,"") -> 
C29: 0 | E29: p | H29: 22 | I29: 23 : 7 | S29: =IF(ISNUMBER(K29),COUNTIF(K$7:K29,"="&K29)-1,"") -> 
C30: 0 | E30: p | H30: 23 | I30: 24 : 7 | S30: =IF(ISNUMBER(K30),COUNTIF(K$7:K30,"="&K30)-1,"") -> 
C31: 0 | E31: p | H31: 24 | I31: 25 : 7 | S31: =IF(ISNUMBER(K31),COUNTIF(K$7:K31,"="&K31)-1,"") -> 
C32: 0 | E32: p | H32: 25 | I32: 26 : 7 | S32: =IF(ISNUMBER(K32),COUNTIF(K$7:K32,"="&K32)-1,"") -> 
C33: 0 | E33: p | H33: 26 | I33: 27 : 7 | S33: =IF(ISNUMBER(K33),COUNTIF(K$7:K33,"="&K33)-1,"") -> 
C34: 0 | E34: p | H34: 27 | I34: 28 : 7 | S34: =IF(ISNUMBER(K34),COUNTIF(K$7:K34,"="&K34)-1,"") -> 
C35: 0 | E35: p | H35: 28 | I35: 29 : 7 | S35: =IF(ISNUMBER(K35),COUNTIF(K$7:K35,"="&K35)-1,"") -> 
C36: 0 | E36: p | H36: 29 | I36: 30 : 7 | S36: =IF(ISNUMBER(K36),COUNTIF(K$7:K36,"="&K36)-1,"") -> 
C37: 0 | E37: p | H37: 30 | I37: 31 : 7 | S37: =IF(ISNUMBER(K37),COUNTIF(K$7:K37,"="&K37)-1,"") ->  | T37: =LEN($J37)-LEN(SUBSTITUTE($J37,T$4,"")) ->  | AD37: =LEN($J37)-LEN(SUBSTITUTE($J37,AD$4,"")) ->  | AN37: =LEN($J37)-LEN(SUBSTITUTE($J37,AN$4,"")) ->  | AX37: =LEN($J37)-LEN(SUBSTITUTE($J37,AX$4,"")) ->  | BH37: =LEN($J37)-LEN(SUBSTITUTE($J37,BH$4,"")) ->  | BR37: =LEN($J37)-LEN(SUBSTITUTE($J37,BR$4,"")) -> 
C38: 0 | E38: p | H38: 31 | I38: 32 : 7 | S38: =IF(ISNUMBER(K38),COUNTIF(K$7:K38,"="&K38)-1,"") -> 
C39: 0 | E39: p | H39: 32 | I39: 33 : 7 | K39: =IF(LEN(J39)=0,"",SUMPRODUCT(T$5:CU$5,T39:CU39)) ->  | M39: =IF(LEN(J39)=0,"",SUMPRODUCT(T$6:CU$6,T39:CU39)) ->  | O39: =IF(LEN(J39)=0,"",M39+TRUNC(K39-M39-0.1)) ->  | Q39: =IF(ISNUMBER(K39),R39+S39,"") ->  | R39: =IF(ISNUMBER(K39),COUNTIF(K$7:K$66,"<"&K39)+1,"") ->  | S39: =IF(ISNUMBER(K39),COUNTIF(K$7:K39,"="&K39)-1,"") ->  | CB39: =LEN($J39)-LEN(SUBSTITUTE($J39,CB$4,"")) ->  | CR39: =LEN($J39)-LEN(SUBSTITUTE($J39,CR$4,"")) ->  | CS39: =LEN(J39)+B39+C39 ->  | CU39: =-(LEN(J39)-1) -> 
C40: 0 | E40: p | H40: 33 | I40: 34 : 7 | S40: =IF(ISNUMBER(K40),COUNTIF(K$7:K40,"="&K40)-1,"") -> 
C41: 0 | E41: p | H41: 34 | I41: 35 : 7 | S41: =IF(ISNUMBER(K41),COUNTIF(K$7:K41,"="&K41)-1,"") -> 
C42: 0 | E42: p | H42: 35 | I42: 36 : 7 | S42: =IF(ISNUMBER(K42),COUNTIF(K$7:K42,"="&K42)-1,"") -> 
C43: 0 | E43: p | H43: 36 | I43: 37 : 7 | S43: =IF(ISNUMBER(K43),COUNTIF(K$7:K43,"="&K43)-1,"") -> 
C44: 0 | E44: p | H44: 37 | I44: 38 : 7 | S44: =IF(ISNUMBER(K44),COUNTIF(K$7:K44,"="&K44)-1,"") -> 
C45: 0 | E45: p | H45: 38 | I45: 39 : 7 | S45: =IF(ISNUMBER(K45),COUNTIF(K$7:K45,"="&K45)-1,"") -> 
C46: 0 | E46: p | H46: 39 | I46: 40 : 7 | S46: =IF(ISNUMBER(K46),COUNTIF(K$7:K46,"="&K46)-1,"") -> 
C47: 0 | E47: p | H47: 40 | I47: 41 : 7 | S47: =IF(ISNUMBER(K47),COUNTIF(K$7:K47,"="&K47)-1,"") ->  | T47: =LEN($J47)-LEN(SUBSTITUTE($J47,T$4,"")) ->  | AD47: =LEN($J47)-LEN(SUBSTITUTE($J47,AD$4,"")) ->  | AN47: =LEN($J47)-LEN(SUBSTITUTE($J47,AN$4,"")) ->  | AX47: =LEN($J47)-LEN(SUBSTITUTE($J47,AX$4,"")) ->  | BH47: =LEN($J47)-LEN(SUBSTITUTE($J47,BH$4,"")) ->  | BR47: =LEN($J47)-LEN(SUBSTITUTE($J47,BR$4,"")) -> 
C48: 0 | E48: p | H48: 41 | I48: 42 : 7 | S48: =IF(ISNUMBER(K48),COUNTIF(K$7:K48,"="&K48)-1,"") -> 
C49: 0 | E49: p | H49: 42 | I49: 43 : 7 | S49: =IF(ISNUMBER(K49),COUNTIF(K$7:K49,"="&K49)-1,"") -> 
C50: 0 | E50: p | H50: 43 | I50: 44 : 7 | S50: =IF(ISNUMBER(K50),COUNTIF(K$7:K50,"="&K50)-1,"") -> 
C51: 0 | E51: p | H51: 44 | I51: 45 : 7 | S51: =IF(ISNUMBER(K51),COUNTIF(K$7:K51,"="&K51)-1,"") -> 
C52: 0 | E52: p | H52: 45 | I52: 46 : 7 | S52: =IF(ISNUMBER(K52),COUNTIF(K$7:K52,"="&K52)-1,"") -> 
C53: 0 | E53: p | H53: 46 | I53: 47 : 7 | S53: =IF(ISNUMBER(K53),COUNTIF(K$7:K53,"="&K53)-1,"") -> 
C54: 0 | E54: p | H54: 47 | I54: 48 : 7 | S54: =IF(ISNUMBER(K54),COUNTIF(K$7:K54,"="&K54)-1,"") -> 
C55: 0 | E55: p | H55: 48 | I55: 49 : 7 | S55: =IF(ISNUMBER(K55),COUNTIF(K$7:K55,"="&K55)-1,"") ->  | CB55: =LEN($J55)-LEN(SUBSTITUTE($J55,CB$4,"")) ->  | CR55: =LEN($J55)-LEN(SUBSTITUTE($J55,CR$4,"")) -> 
C56: 0 | E56: p | H56: 49 | I56: 50 : 7 | S56: =IF(ISNUMBER(K56),COUNTIF(K$7:K56,"="&K56)-1,"") -> 
C57: 0 | E57: p | H57: 50 | I57: 51 : 7 | S57: =IF(ISNUMBER(K57),COUNTIF(K$7:K57,"="&K57)-1,"") ->  | T57: =LEN($J57)-LEN(SUBSTITUTE($J57,T$4,"")) ->  | AD57: =LEN($J57)-LEN(SUBSTITUTE($J57,AD$4,"")) ->  | AN57: =LEN($J57)-LEN(SUBSTITUTE($J57,AN$4,"")) ->  | AX57: =LEN($J57)-LEN(SUBSTITUTE($J57,AX$4,"")) ->  | BH57: =LEN($J57)-LEN(SUBSTITUTE($J57,BH$4,"")) ->  | BR57: =LEN($J57)-LEN(SUBSTITUTE($J57,BR$4,"")) -> 
C58: 0 | E58: p | H58: 51 | I58: 52 : 7 | S58: =IF(ISNUMBER(K58),COUNTIF(K$7:K58,"="&K58)-1,"") -> 
C59: 0 | E59: p | H59: 52 | I59: 53 : 7 | S59: =IF(ISNUMBER(K59),COUNTIF(K$7:K59,"="&K59)-1,"") -> 
C60: 0 | E60: p | H60: 53 | I60: 54 : 7 | S60: =IF(ISNUMBER(K60),COUNTIF(K$7:K60,"="&K60)-1,"") -> 
C61: 0 | E61: p | H61: 54 | I61: 55 : 7 | S61: =IF(ISNUMBER(K61),COUNTIF(K$7:K61,"="&K61)-1,"") -> 
C62: 0 | E62: p | H62: 55 | I62: 56 : 7 | S62: =IF(ISNUMBER(K62),COUNTIF(K$7:K62,"="&K62)-1,"") -> 
C63: 0 | E63: p | H63: 56 | I63: 57 : 7 | S63: =IF(ISNUMBER(K63),COUNTIF(K$7:K63,"="&K63)-1,"") -> 
C64: 0 | E64: p | H64: 57 | I64: 58 : 7 | S64: =IF(ISNUMBER(K64),COUNTIF(K$7:K64,"="&K64)-1,"") -> 
C65: 0 | E65: p | H65: 58 | I65: 59 : 7 | S65: =IF(ISNUMBER(K65),COUNTIF(K$7:K65,"="&K65)-1,"") -> 
C66: 0 | E66: p | H66: 59 | I66: 60 : 7 | S66: =IF(ISNUMBER(K66),COUNTIF(K$7:K66,"="&K66)-1,"") -> 

Sheet 定数表
C2: 慣用表記 | D2: 1文字 | E2: average | F2: mono isotopic
C3: C | D3: C | E3: 243.21662 | F3: 243.0855205 | H3: N | I3: ユーザー定義
C4: U | D4: U | E4: 244.20138 | F4: 244.0695361
C5: T | D5: T | E5: 258.22796 | F5: 258.0851862
C6: A | D6: A | E6: 267.24132 | F6: 267.0967539
C7: G | D7: G | E7: 283.24072 | F7: 283.0916686
C8: Ar(p) | D8: ^ | E8: 479.335842 | F8: 479.1053431 | H8: 特殊文字
C9: Am | D9: : | E9: 281.2679 | F9: 281.112404 | H9: ~, ?, *を検索するときは~でエスケープしたクエリを投げる必要がある。
C10: Gm | D10: # | E10: 297.2673 | F10: 297.1073186
C11: f5Cm | D11: ° | E11: 285.2533 | F11: 285.0960852 | H11: １文字表記の拡張
C12: ncm5Um | D12: ~ | E12: 315.27928 | F12: 315.1066499 | H12: 独自拡張した部分は、適当に決めたものであって、外では通用しないので注意。
C13: cmnm5Um | D13: ) | E13: 345.30526 | F13: 345.1172146 | H13: （そもそも１文字表記自体、RNAのデータベース関係の人以外には通用しません。）
C14: m5Um | D14: \ | E14: 272.25454 | F14: 272.1008363 | H14: ユニコード ラテン補助の記号つきAから順番に割り当てている。
C15: Um | D15: J | E15: 258.22796 | F15: 258.0851862 | H15: @とHは未同定修飾に割り当てられていたものなので、扱いに注意を要する。
C16: Cm | D16: B | E16: 257.2432 | F16: 257.1011706
C17: m6A | D17: = | E17: 281.2679 | F17: 281.112404
C18: m2A | D18: / | E18: 281.2679 | F18: 281.112404
C19: m1A | D19: " | E19: 281.2679 | F19: 281.112404
C20: i6A | D20: + | E20: 335.35834 | F20: 335.1593542
C21: ms2i6A | D21: * | E21: 381.44992 | F21: 381.147075
C22: io6A | D22: ` | E22: 351.35774 | F22: 351.1542688
C23: m3C | D23: ' | E23: 257.2432 | F23: 257.1011706
C24: mchm5U | D24: , | E24: 332.26344 | F24: 332.0855801
C25: m22Gm | D25: | | E25: 325.32046 | F25: 325.1386188
C26: mnm5U | D26: { | E26: 287.26918 | F26: 287.1117353
C27: ms2t6A | D27: [ | E27: 458.44628 | F27: 458.1219825
C28: m1Y | D28: ] | E28: 258.22796 | F28: 258.0851862
C29: f5C | D29: > | E29: 271.22672 | F29: 271.0804352
C30: m5C | D30: ? | E30: 257.2432 | F30: 257.1011706
C31: s2C | D31: % | E31: 259.28222 | F31: 259.0626767
C32: cmnm5s2U | D32: $ | E32: 347.34428 | F32: 347.0787207
C33: cmnm5U | D33: ! | E33: 331.27868 | F33: 331.1015645
C34: mcm5U | D34: 1 | E34: 316.26404 | F34: 316.0906655
C35: s2U | D35: 2 | E35: 260.26698 | F35: 260.0466922
C36: mcm5s2U | D36: 3 | E36: 332.32964 | F36: 332.0678216
C37: s4U | D37: 4 | E37: 260.26698 | F37: 260.0466922
C38: mo5U | D38: 5 | E38: 274.22736 | F38: 274.0801008
C39: t6A | D39: 6 | E39: 412.3547 | F39: 412.1342617
C40: m7G | D40: 7 | E40: 297.2673 | F40: 297.1073186
C41: manQ | D41: 8 | E41: 571.53442 | F41: 571.2125716
C42: galQ | D42: 9 | E42: 571.53442 | F42: 571.2125716
C43: D | D43: D | E43: 246.21726 | F43: 246.0851862
C44: m6t6A | D44: E | E44: 426.38128 | F44: 426.1499117
C45: m5s2U | D45: F | E45: 274.29356 | F45: 274.0623423
C46: I | D46: I | E46: 268.22608 | F46: 268.0807695
C47: m1G | D47: K | E47: 297.2673 | F47: 297.1073186
C48: m2G | D48: L | E48: 297.2673 | F48: 297.1073186
C49: ac4C | D49: M | E49: 285.2533 | F49: 285.0960852
C50: m1I | D50: O | E50: 282.25266 | F50: 282.0964196
C51: Y | D51: P | E51: 244.20138 | F51: 244.0695361
C52: Q | D52: Q | E52: 409.39382 | F52: 409.1597481
C53: m22G | D53: R | E53: 311.29388 | F53: 311.1229687
C54: mnm5s2U | D54: S | E54: 303.33478 | F54: 303.0888914
C55: cmo5U | D55: V | E55: 318.23686 | F55: 318.0699301
C56: o2yW | D56: W | E56: 540.48062 | F56: 540.1816058
C57: acp3U | D57: X | E57: 345.30526 | F57: 345.1172146
C58: yW | D58: Y | E58: 508.48182 | F58: 508.1917765
C59: Ym | D59: Z | E59: 258.22796 | F59: 258.0851862
C60: L | D60: } | E60: 371.3889 | F60: 371.1804836
C61: ncm5U | D61: & | E61: 301.2527 | F61: 301.0909999
C62: G+ | D62: ( | E62: 324.29264 | F62: 324.1182177
B64: 以下は | C64: imG | D64: À | E64: 335.31528 | F64: 335.1229687
B65: 拡張１文字表記 | C65: minG | D65: Á | E65: 349.34186 | F65: 349.1386188
B66: 外では通用しない | C66: m62A | D66: Â | E66: 295.29448 | F66: 295.1280541
B67: ので注意 | C67: m1acp3Y | D67: Ã | E67: 359.33184 | F67: 359.1328647
C68: hm5C | D68: Ä | E68: 273.2426 | F68: 273.0960852
C69: hm5Cm | D69: Å | E69: 287.26918 | F69: 287.1117353
C70: tm5U | D70: @ | E70: 381.35896 | F70: 381.0842
C71: tm5s2U | D71: H | E71: 397.42456 | F71: 397.0613561
C72: N341 | D72: Æ | E72: 341.36292 | F72: 341.1699189
C73: ho5U | D73: ∝ | E73: 260.20078 | F73: 260.0644508
C74: U-52 | D74: Ç | E74: 192.16988 | F74: 192.0746215
C75: cm5U | D75: ◊ | E75: 302.23746 | F75: 302.0750154
C76: m4Cm | D76: Ò | E76: 271.26978 | F76: 271.1168207
C77: m3U | D77: Õ | E77: 258.22796 | F77: 258.0851862
C78: ct6A | D78: Ï | E78: 394.33942 | F78: 394.123697
C79: ca5C | D79: Ñ | E79: 287.22612 | F79: 287.0753498
